Workbook

Sheet Bonds
C2: 2024-12-02 | D2: Settlement Date | I2: First Payment | P2: YTM Sensitivity
A3: Bond # | B3: Lookup Key | C3: Maturity | D3: Coupon | E3: Ask Price | F3: Accrued Interest | G3: Total Outlay | H3: Date | I3: Tot Days | J3: Elap Days | K3: Addit-ional Periods | L3: YTM | M3: Years to Mature | N3: Macau-lay Duration | O3: Modified Duration | P3: 0.01 | Q3: 0.02 | R3: 0.03 | S3: Comment
A4: 1 | B4: =TEXT(C4,"yyyymmdd")&TEXT(100000*D4,"00000") -> 2025011500250 | C4: =INDEX(wsj_table,$A4,1) -> 2025-01-15 | D4: =ROUND(INDEX(wsj_table,$A4,3)/100,5) -> 0.0025 | E4: =ROUND(INDEX(wsj_table,$A4,9),5) -> 99.59375 | F4: 0.09510869565 | G4: 99.6888587 | H4: 2025-01-15 | I4: 184 | J4: 44 | K4: 0 | L4: 0.03684663773 | M4: 0.1195652174 | N4: 0.1195652171 | O4: 0.001174022775 | P4: -0.001170466969 | Q4: -0.002333867193 | R4: -0.003490279633 | S4: First 53 rows TIPS from WSJ
A5: 2 | B5: =TEXT(C5,"yyyymmdd")&TEXT(100000*D5,"00000") -> 2025011502375 | C5: =INDEX(wsj_table,$A5,1) -> 2025-01-15 | D5: =ROUND(INDEX(wsj_table,$A5,3)/100,5) -> 0.02375 | E5: =ROUND(INDEX(wsj_table,$A5,9),5) -> 99.8125 | F5: 0.9035326087 | G5: 100.7160326 | H5: 2025-01-15 | I5: 184 | J5: 44 | K5: 0 | L5: 0.03944396973 | M5: 0.1195652174 | N5: 0.1195652185 | O5: 0.001172527613 | P5: -0.001168969457 | Q5: -0.002330901444 | R5: -0.003485863241
A6: 3 | B6: 2025041500125 | C6: 2025-04-15 | D6: 0.00125 | E6: 99.0625 | F6: 0.01648351648 | G6: 99.07898352 | H6: 2025-04-15 | I6: 182 | J6: 134 | K6: 0 | L6: 0.02701258659 | M6: 0.3681318681 | N6: 0.3681318709 | O6: 0.003632260335 | P6: -0.003616766286 | Q6: -0.007202842926 | R6: -0.01075863109
A7: 4 | B7: 2025071500375 | C7: 2025-07-15 | D7: 0.00375 | E7: 99.125 | F7: 0.1426630435 | G7: 99.26766304 | H7: 2025-01-15 | I7: 184 | J7: 44 | K7: 1 | L7: 0.01801276207 | M7: 0.6195652174 | N7: 0.6186228253 | O7: 0.006131010041 | P7: -0.006097180095 | Q7: -0.01212742423 | R7: -0.01809178791
A8: 5 | B8: 2025101500125 | C8: 2025-10-15 | D8: 0.00125 | E8: 98.75 | F8: 0.01648351648 | G8: 98.76648352 | H8: 2025-04-15 | I8: 182 | J8: 134 | K8: 1 | L8: 0.01580399275 | M8: 0.8681318681 | N8: 0.8678172938 | O8: 0.008610135677 | P8: -0.008552062738 | Q8: -0.01698939931 | R8: -0.02531410081
A9: 6 | B9: 2026011500625 | C9: 2026-01-15 | D9: 0.00625 | E9: 98.53125 | F9: 0.2377717391 | G9: 98.76902174 | H9: 2025-01-15 | I9: 184 | J9: 44 | K9: 2 | L9: 0.01957479119 | M9: 1.119565217 | N9: 1.114845631 | O9: 0.01104039955 | P9: -0.01095254706 | Q9: -0.02173180663 | R9: -0.03234135408
A10: 7 | B10: 2026011502000 | C10: 2026-01-15 | D10: 0.02 | E10: 100 | F10: 0.7608695652 | G10: 100.7608696 | H10: 2025-01-15 | I10: 184 | J10: 44 | K10: 2 | L10: 0.01999178529 | M10: 1.119565217 | N10: 1.104762839 | O10: 0.01093829041 | P10: -0.01085141112 | Q10: -0.02153144386 | R10: -0.03204363353
A11: 8 | B11: 2026041500125 | C11: 2026-04-15 | D11: 0.00125 | E11: 97.625 | F11: 0.01648351648 | G11: 97.64148352 | H11: 2025-04-15 | I11: 182 | J11: 134 | K11: 2 | L11: 0.0189165771 | M11: 1.368131868 | N11: 1.367181335 | O11: 0.01354371301 | P11: -0.01341938711 | Q11: -0.02659396414 | R11: -0.03952936392
A12: 9 | B12: 2026071500125 | C12: 2026-07-15 | D12: 0.00125 | E12: 97.65625 | F12: 0.04755434783 | G12: 97.70380435 | H12: 2025-01-15 | I12: 184 | J12: 44 | K12: 3 | L12: 0.01596679538 | M12: 1.619565217 | N12: 1.617659892 | O12: 0.01604847754 | P12: -0.01588123723 | Q12: -0.03143370666 | R12: -0.04666577948
A13: 10 | B13: 2026101500125 | C13: 2026-10-15 | D13: 0.00125 | E13: 97.3125 | F13: 0.01648351648 | G13: 97.32898352 | H13: 2025-04-15 | I13: 182 | J13: 134 | K13: 3 | L13: 0.01590771973 | M13: 1.868131868 | N13: 1.866226668 | O13: 0.01851500096 | P13: -0.01829961379 | Q13: -0.03617649197 | R13: -0.0536424083
A14: 11 | B14: 2027011500375 | C14: 2027-01-15 | D14: 0.00375 | E14: 97.15625 | F14: 0.1426630435 | G14: 97.29891304 | H14: 2025-01-15 | I14: 184 | J14: 44 | K14: 4 | L14: 0.01747447252 | M14: 2.119565217 | N14: 2.110032893 | O14: 0.0209175672 | P14: -0.02064903072 | Q14: -0.04077185551 | R14: -0.06038438052
A15: 12 | B15: 2027011502375 | C15: 2027-01-15 | D15: 0.02375 | E15: 101.28125 | F15: 0.9035326087 | G15: 102.1847826 | H15: 2025-01-15 | I15: 184 | J15: 44 | K15: 4 | L15: 0.01756086946 | M15: 2.119565217 | N15: 2.062083554 | O15: 0.02044135159 | P15: -0.02018036165 | Q15: -0.03984931167 | R15: -0.0590222552
A16: 13 | B16: 2027041500125 | C16: 2027-04-15 | D16: 0.00125 | E16: 96.21875 | F16: 0.01648351648 | G16: 96.23523352 | H16: 2025-04-15 | I16: 182 | J16: 134 | K16: 4 | L16: 0.01762272418 | M16: 2.368131868 | N16: 2.3649336 | O16: 0.02344277323 | P16: -0.02311332373 | Q16: -0.04558218068 | R16: -0.06742756763
A17: 14 | B17: 2027071500375 | C17: 2027-07-15 | D17: 0.00375 | E17: 96.90625 | F17: 0.1426630435 | G17: 97.04891304 | H17: 2025-01-15 | I17: 184 | J17: 44 | K17: 5 | L17: 0.01585330814 | M17: 2.619565217 | N17: 2.605253181 | O17: 0.02584764646 | P17: -0.02545293468 | Q17: -0.05013496983 | R17: -0.07407308854
A18: 15 | B18: 2027101501625 | C18: 2027-10-15 | D18: 0.01625 | E18: 100 | F18: 0.2142857143 | G18: 100.2142857 | H18: 2025-04-15 | I18: 182 | J18: 134 | K18: 5 | L18: 0.01624771208 | M18: 2.868131868 | N18: 2.808331402 | O18: 0.0278570077 | P18: -0.02740050698 | Q18: -0.05391086365 | R18: -0.07956422176
A19: 16 | B19: 2028011500500 | C19: 2028-01-15 | D19: 0.005 | E19: 96.25 | F19: 0.1902173913 | G19: 96.44021739 | H19: 2025-01-15 | I19: 184 | J19: 44 | K19: 6 | L19: 0.01740169525 | M19: 3.119565217 | N19: 3.09278976 | O19: 0.03066111986 | P19: -0.030119627 | Q19: -0.05918512234 | R19: -0.0872383197
A20: 17 | B20: 2028011501750 | C20: 2028-01-15 | D20: 0.0175 | E20: 100.0625 | F20: 0.6657608696 | G20: 100.7282609 | H20: 2025-01-15 | I20: 184 | J20: 44 | K20: 6 | L20: 0.01729106903 | M20: 3.119565217 | N20: 3.029831263 | O20: 0.03003861277 | P20: -0.02951097536 | Q20: -0.05799470247 | R20: -0.08549184431
A21: 18 | B21: 2028041503625 | C21: 2028-04-15 | D21: 0.03625 | E21: 105.9375 | F21: 0.478021978 | G21: 106.415522 | H21: 2025-04-15 | I21: 182 | J21: 134 | K21: 6 | L21: 0.01799780875 | M21: 3.368131868 | N21: 3.193085982 | O21: 0.03164607978 | P21: -0.03105815926 | Q21: -0.06097340473 | R21: -0.08979340621
A22: 19 | B22: 2028041501250 | C22: 2028-04-15 | D22: 0.0125 | E22: 98.34375 | F22: 0.1648351648 | G22: 98.50858516 | H22: 2025-04-15 | I22: 182 | J22: 134 | K22: 6 | L22: 0.01758442074 | M22: 3.368131868 | N22: 3.302894454 | O22: 0.0327410781 | P22: -0.03212604875 | Q22: -0.06305669956 | R22: -0.09284208864
A23: 20 | B23: 2028071500750 | C23: 2028-07-15 | D23: 0.0075 | E23: 96.9375 | F23: 0.285326087 | G23: 97.22282609 | H23: 2025-01-15 | I23: 184 | J23: 44 | K23: 7 | L23: 0.01624567807 | M23: 3.619565217 | N23: 3.566529753 | O23: 0.03537792832 | P23: -0.03466881409 | Q23: -0.0679616854 | R23: -0.09993967398
A24: 21 | B24: 2028101502375 | C24: 2028-10-15 | D24: 0.02375 | E24: 102.75 | F24: 0.3131868132 | G24: 103.0631868 | H24: 2025-04-15 | I24: 182 | J24: 134 | K24: 7 | L24: 0.0163814202 | M24: 3.868131868 | N24: 3.710367959 | O24: 0.03680224309 | P24: -0.03602793239 | Q24: -0.07055558882 | R24: -0.1036527266
A25: 22 | B25: 2029011500875 | C25: 2029-01-15 | D25: 0.00875 | E25: 96.625 | F25: 0.3328804348 | G25: 96.95788043 | H25: 2025-01-15 | I25: 184 | J25: 44 | K25: 8 | L25: 0.01727198064 | M25: 4.119565217 | N25: 4.040109867 | O25: 0.0400551825 | P25: -0.03915806679 | Q25: -0.07658095002 | R25: -0.1123536917
A26: 23 | B26: 2029011502500 | C26: 2029-01-15 | D26: 0.025 | E26: 103.03125 | F26: 0.9510869565 | G26: 103.982337 | H26: 2025-01-15 | I26: 184 | J26: 44 | K26: 8 | L26: 0.01734153554 | M26: 4.119565217 | N26: 3.907904445 | O26: 0.03874311193 | P26: -0.03788360123 | Q26: -0.07410451801 | R26: -0.1087438347
A27: 24 | B27: 2029041503875 | C27: 2029-04-15 | D27: 0.03875 | E27: 108.75 | F27: 0.510989011 | G27: 109.260989 | H27: 2025-04-15 | I27: 182 | J27: 134 | K27: 8 | L27: 0.01783501357 | M27: 4.368131868 | N27: 4.057475628 | O27: 0.04021612868 | P27: -0.03928540507 | Q27: -0.07677295997 | R27: -0.1125540357
A28: 25 | B28: 2029041502125 | C28: 2029-04-15 | D28: 0.02125 | E28: 101.40625 | F28: 0.2802197802 | G28: 101.6864698 | H28: 2025-04-15 | I28: 182 | J28: 134 | K28: 8 | L28: 0.01788669825 | M28: 4.368131868 | N28: 4.185096245 | O28: 0.0414799924 | P28: -0.04051008149 | Q28: -0.07914692406 | R28: -0.1160062466
A29: 26 | B29: 2029071500250 | C29: 2029-07-15 | D29: 0.0025 | E29: 93.90625 | F29: 0.09510869565 | G29: 94.0013587 | H29: 2025-01-15 | I29: 184 | J29: 44 | K29: 9 | L29: 0.01624561846 | M29: 4.619565217 | N29: 4.590335972 | O29: 0.04553349979 | P29: -0.04440048809 | Q29: -0.08661690185 | R29: -0.1267666987
A30: 27 | B30: 2029101501625 | C30: 2029-10-15 | D30: 0.01625 | E30: 99.62 | F30: 0.2142857143 | G30: 99.83428571 | H30: 2025-04-15 | I30: 182 | J30: 134 | K30: 9 | L30: 0.01706534252 | M30: 4.868131868 | N30: 4.690203277 | O30: 0.04650521902 | P30: -0.04530545634 | Q30: -0.08830140765 | R30: -0.1291166911
A31: 28 | B31: 2030011500125 | C31: 2030-01-15 | D31: 0.00125 | E31: 92.09375 | F31: 0.04755434783 | G31: 92.14130435 | H31: 2025-01-15 | I31: 184 | J31: 44 | K31: 10 | L31: 0.01746090874 | M31: 5.119565217 | N31: 5.101425612 | O31: 0.05057273318 | P31: -0.04919344838 | Q31: -0.09573669308 | R31: -0.1397845424
A32: 29 | B32: 2030071500125 | C32: 2030-07-15 | D32: 0.00125 | E32: 91.625 | F32: 0.04755434783 | G32: 91.67255435 | H32: 2025-01-15 | I32: 184 | J32: 44 | K32: 11 | L32: 0.01693663374 | M32: 5.619565217 | N32: 5.597728799 | O32: 0.05550723513 | P32: -0.05386112055 | Q32: -0.1045696649 | R32: -0.1523243843
A33: 30 | B33: 2031011500125 | C33: 2031-01-15 | D33: 0.00125 | E33: 90.4375 | F33: 0.04755434783 | G33: 90.48505435 | H33: 2025-01-15 | I33: 184 | J33: 44 | K33: 12 | L33: 0.01781256869 | M33: 6.119565217 | N33: 6.093535354 | O33: 0.0603974368 | P33: -0.05846415846 | Q33: -0.1132377104 | R33: -0.1645701797
A34: 31 | B34: 2031071500125 | C34: 2031-07-15 | D34: 0.00125 | E34: 89.96875 | F34: 0.04755434783 | G34: 90.01630435 | H34: 2025-01-15 | I34: 184 | J34: 44 | K34: 13 | L34: 0.01735666394 | M34: 6.619565217 | N34: 6.589098588 | O34: 0.06532408181 | P34: -0.06307860075 | Q34: -0.121884493 | R34: -0.1767261623
A35: 32 | B35: 2032011500125 | C35: 2032-01-15 | D35: 0.00125 | E35: 88.9375 | F35: 0.04755434783 | G35: 88.98505435 | H35: 2025-01-15 | I35: 184 | J35: 44 | K35: 14 | L35: 0.01786648482 | M35: 7.119565217 | N35: 7.084144367 | O35: 0.07021420317 | P35: -0.0676362507 | Q35: -0.1303830187 | R35: -0.1886154519
A36: 33 | B36: 2032041503375 | C36: 2032-04-15 | D36: 0.03375 | E36: 111.15625 | F36: 0.4450549451 | G36: 111.6013049 | H36: 2025-04-15 | I36: 182 | J36: 134 | K36: 14 | L36: 0.01754096523 | M36: 7.368131868 | N36: 6.608333669 | O36: 0.06550879296 | P36: -0.06311218039 | Q36: -0.1216817115 | R36: -0.1760609822
A37: 34 | B37: 2032071500625 | C37: 2032-07-15 | D37: 0.00625 | E37: 91.875 | F37: 0.2377717391 | G37: 92.11277174 | H37: 2025-01-15 | I37: 184 | J37: 44 | K37: 15 | L37: 0.01769502647 | M37: 7.619565217 | N37: 7.424519864 | O37: 0.07359407409 | P37: -0.07073699436 | Q37: -0.1360717096 | R37: -0.1964417535
A38: 35 | B38: 2033011501125 | C38: 2033-01-15 | D38: 0.01125 | E38: 94.53125 | F38: 0.4279891304 | G38: 94.95923913 | H38: 2025-01-15 | I38: 184 | J38: 44 | K38: 16 | L38: 0.0185352806 | M38: 8.119565217 | N38: 7.73552233 | O38: 0.07664490588 | P38: -0.07351427381 | Q38: -0.1411267333 | R38: -0.2033399815
A39: 36 | B39: 2033071501375 | C39: 2033-07-15 | D39: 0.01375 | E39: 96.21875 | F39: 0.5230978261 | G39: 96.74184783 | H39: 2025-01-15 | I39: 184 | J39: 44 | K39: 17 | L39: 0.01851569861 | M39: 8.619565217 | N39: 8.102759559 | O39: 0.08028433531 | P39: -0.07683511294 | Q39: -0.1471877633 | R39: -0.2116376065
A40: 37 | B40: 2034011501750 | C40: 2034-01-15 | D40: 0.0175 | E40: 98.625 | F40: 0.6657608696 | G40: 99.29076087 | H40: 2025-01-15 | I40: 184 | J40: 44 | K40: 18 | L40: 0.01914950833 | M40: 9.119565217 | N40: 8.40672229 | O40: 0.08326993375 | P40: -0.07952727566 | Q40: -0.1520414619 | R40: -0.2181983138
A41: 38 | B41: 2034071501875 | C41: 2034-07-15 | D41: 0.01875 | E41: 99.71875 | F41: 0.7133152174 | G41: 100.4320652 | H41: 2025-01-15 | I41: 184 | J41: 44 | K41: 19 | L41: 0.01907047257 | M41: 9.619565217 | N41: 8.78297014 | O41: 0.08700013456 | P41: -0.08290620019 | Q41: -0.1581646703 | R41: -0.2265227941
A42: 39 | B42: =TEXT(C42,"yyyymmdd")&TEXT(100000*D42,"00000") -> 2040021502125 | C42: 2040-02-15 | D42: 0.02125 | E42: 101.03125 | F42: 0.6294157609 | G42: 101.6606658 | H42: 2025-02-15 | I42: 184 | J42: 75 | K42: 30 | L42: 0.02045634016 | M42: 15.20380435 | N42: 13.00483601 | O42: 0.1287316707 | P42: -0.1197157518 | Q42: -0.2231525777 | R42: -0.3126431485
A43: 40 | B43: 2041021502125 | C43: 2041-02-15 | D43: 0.02125 | E43: 101.1875 | F43: 0.6294157609 | G43: 101.8169158 | H43: 2025-02-15 | I43: 184 | J43: 75 | K43: 32 | L43: 0.02038482018 | M43: 16.20380435 | N43: 13.72582995 | O43: 0.1358734219 | P43: -0.1258180876 | Q43: -0.2335892865 | R43: -0.3260410524
A44: 41 | B44: 2042021500750 | C44: 2042-02-15 | D44: 0.0075 | E44: 80.75 | F44: 0.2221467391 | G44: 80.97214674 | H44: 2025-02-15 | I44: 184 | J44: 75 | K44: 34 | L44: 0.02087607421 | M44: 17.20380435 | N44: 15.97563557 | O44: 0.158106039 | P44: -0.1453456425 | Q44: -0.2679762237 | R44: -0.371568403
A45: 42 | B45: 2043021500625 | C45: 2043-02-15 | D45: 0.00625 | E45: 77.46875 | F45: 0.1851222826 | G45: 77.65387228 | H45: 2025-02-15 | I45: 184 | J45: 75 | K45: 36 | L45: 0.02123814728 | M45: 18.20380435 | N45: 17.01940159 | O45: 0.1684057034 | P45: -0.1540618147 | Q45: -0.2827531985 | R45: -0.3903900699
A46: 43 | B46: 2044021501375 | C46: 2044-02-15 | D46: 0.01375 | E46: 88.09375 | F46: 0.4072690217 | G46: 88.50101902 | H46: 2025-02-15 | I46: 184 | J46: 75 | K46: 38 | L46: 0.02133878507 | M46: 19.20380435 | N46: 16.67822046 | O46: 0.1650215252 | P46: -0.1506214613 | Q46: -0.2758891524 | R46: -0.3802605418
A47: 44 | B47: 2045021500750 | C47: 2045-02-15 | D47: 0.0075 | E47: 77.125 | F47: 0.2221467391 | G47: 77.34714674 | H47: 2025-02-15 | I47: 184 | J47: 75 | K47: 40 | L47: 0.02152096853 | M47: 20.20380435 | N47: 18.47292101 | O47: 0.1827625961 | P47: -0.1657627972 | Q47: -0.3018173972 | R47: -0.4136703172
A48: 45 | B48: =TEXT(C48,"yyyymmdd")&TEXT(100000*D48,"00000") -> 2046021501000 | C48: 2046-02-15 | D48: 0.01 | E48: 80.25 | F48: 0.2961956522 | G48: 80.54619565 | H48: 2025-02-15 | I48: 184 | J48: 75 | K48: 42 | L48: 0.02166626137 | M48: 21.20380435 | N48: 18.78167988 | O48: 0.1858039602 | P48: -0.1679327607 | Q48: -0.3048037098 | R48: -0.4165798604
A49: 46 | B49: 2047021500875 | C49: 2047-02-15 | D49: 0.00875 | E49: 77.4375 | F49: 0.2591711957 | G49: 77.6966712 | H49: 2025-02-15 | I49: 184 | J49: 75 | K49: 44 | L49: 0.02159509901 | M49: 22.20380435 | N49: 19.80983467 | O49: 0.195982219 | P49: -0.1762747221 | Q49: -0.3185146578 | R49: -0.4335296483
A50: 47 | B50: 2048021501000 | C50: 2048-02-15 | D50: 0.01 | E50: 79.03125 | F50: 0.2961956522 | G50: 79.32744565 | H50: 2025-02-15 | I50: 184 | J50: 75 | K50: 46 | L50: 0.02152821422 | M50: 23.20380435 | N50: 20.29564063 | O50: 0.2007950271 | P50: -0.179917999 | Q50: -0.3239842922 | R50: -0.4396202272
A51: 48 | B51: 2049021501000 | C51: 2049-02-15 | D51: 0.01 | E51: 78.4375 | F51: 0.2961956522 | G51: 78.73369565 | H51: 2025-02-15 | I51: 184 | J51: 75 | K51: 48 | L51: 0.02146928199 | M51: 24.20380435 | N51: 21.03567145 | O51: 0.2081225932 | P51: -0.1856868752 | Q51: -0.3330752111 | R51: -0.4503727775
A52: 49 | B52: 2050021500250 | C52: 2050-02-15 | D52: 0.0025 | E52: 63.40625 | F52: 0.07404891304 | G52: 63.48029891 | H52: 2025-02-15 | I52: 184 | J52: 75 | K52: 50 | L52: 0.02134952042 | M52: 25.20380435 | N52: 24.14471574 | O52: 0.2388969893 | P52: -0.2113290446 | Q52: -0.3760201142 | R52: -0.5045897784
A53: 50 | B53: 2051021500125 | C53: 2051-02-15 | D53: 0.00125 | E53: 60.28125 | F53: 0.03702445652 | G53: 60.31827446 | H53: 2025-02-15 | I53: 184 | J53: 75 | K53: 52 | L53: 0.021047391 | M53: 26.20380435 | N53: 25.60393551 | O53: 0.2533729355 | P53: -0.2229089249 | Q53: -0.3946302083 | R53: -0.5271285745
A54: 51 | B54: =TEXT(C54,"yyyymmdd")&TEXT(100000*D54,"00000") -> 2052021500125 | C54: 2052-02-15 | D54: 0.00125 | E54: 59.65625 | F54: 0.03702445652 | G54: 59.69327446 | H54: 2025-02-15 | I54: 184 | J54: 75 | K54: 54 | L54: 0.02072666399 | M54: 27.20380435 | N54: 26.55303035 | O54: 0.2628067499 | P54: -0.2301329403 | Q54: -0.405707234 | R54: -0.5398823271
A55: 52 | B55: 2053021501500 | C55: 2053-02-15 | D55: 0.015 | E55: 86.96875 | F55: 0.4442934783 | G55: 87.41304348 | H55: 2025-02-15 | I55: 184 | J55: 75 | K55: 56 | L55: 0.02115854621 | M55: 28.20380435 | N55: 22.52861702 | O55: 0.2229277566 | P55: -0.1961552767 | Q55: -0.347578483 | R55: -0.4649956521
A56: 53 | B56: =TEXT(C56,"yyyymmdd")&TEXT(100000*D56,"00000") -> 2054021502125 | C56: =INDEX(wsj_table,$A56,1) -> 2054-02-15 | D56: 0.02125 | E56: 100.28125 | F56: 0.6294157609 | G56: 100.9106658 | H56: 2025-02-15 | I56: 184 | J56: 75 | K56: 58 | L56: 0.02111984789 | M56: 29.20380435 | N56: 21.78221249 | O56: 0.2155459758 | P56: -0.1895506158 | Q56: -0.3357988918 | R56: -0.4492701697
A57: 54 | B57: 2026120220000 | C57: =DATE(YEAR($C$2)+2,MONTH($C$2),DAY($C$2)) -> 2026-12-02 | D57: 0.2 | E57: 130.462 | F57: 0 | G57: 130.462 | H57: 2025-06-02 | I57: 182 | J57: 182 | K57: 3 | L57: 0.0399992466 | M57: 2 | N57: 1.777489247 | O57: 0.0174263716 | P57: -0.01722360628 | Q57: -0.03404936087 | R57: -0.05048845969 | S57: Example from Wikipedia

Sheet Detail
A1: 54 | B1: Bond #
A2: =settle_date -> 2024-12-02 | B2: Settlement Date | G2: Calculation of Macaulay Duration | K2: Calculation of YTM Sensitivity
A3: =INDEX(Bonds!$A$4:$BB$320,$A$1,COLUMN(maturity)) -> 2026-12-02 | B3: Maturity Date
A4: =INDEX(Bonds!$A$4:$BB$320,$A$1,COLUMN(coupon)) -> 0.2 | B4: Coupon | G4: Sum of Positive Discounted Cash Flows (V) --> | H4: =SUM(H$11:H$75) -> 130.4620009 | L4: =SUM(L$11:L$75) -> 128.2149739 | O4: =SUM(O$11:O$75) -> 126.0198523
A5: =INDEX(Bonds!$A$4:$BB$320,$A$1,COLUMN(price)) -> 130.462 | B5: Price | H5: Sum of Time Weighted Cash Flows (MacCaulay Duration) --> | I5: =SUM(I$10:I$75) -> 1.777489235 | L5: =L4/$H$4-1 -> -0.01722361286 | O5: =O4/$H$4-1 -> -0.03404936734
A6: =INDEX(Bonds!$A$4:$BB$320,$A$1,COLUMN(nbr_per)) -> 3 | B6: # of Additional Periods
B7: YTM - annualized | G7: =INDEX(Bonds!$A$4:$BB$320,$A$1,COLUMN(ytm)) -> 0.0399992466 | K7: =INDEX(Bonds!$A$4:$BB$320,$A$1,COLUMN(ytm))+INDEX(ytm_sensitive,1,1) -> 0.0499992466 | N7: =INDEX(Bonds!$A$4:$BB$320,$A$1,COLUMN(ytm))+INDEX(ytm_sensitive,1,2) -> 0.0599992466
B8: YTM - per semi-annual period | G8: =G$7/2 -> 0.0199996233 | K8: =K$7/2 -> 0.0249996233 | N8: =N$7/2 -> 0.0299996233
A9: Pmt # | B9: Date | C9: Principal | D9: Interest | E9: Total | F9: Time in Periods (t) | G9: Discount Factor | H9: Present Value of Cash Flow (PV) | I9: # Periods X PV / V | K9: Discount Factor | L9: Present Value of Cash Flow (PV) | N9: Discount Factor | O9: Present Value of Cash Flow (PV)
A10: 0 | B10: =$A$2 -> 2024-12-02 | C10: =-$A$5 -> -130.462 | D10: =-INDEX(Bonds!$A$4:$BB$320,$A$1,COLUMN(accrued_int)) -> 0 | E10: =SUM(C10:D10) -> -130.462 | F10: 0 | G10: =IF($E10=0,0,(1 + G$8)^$F10) -> 1 | H10: =IF($G10=0,0,$E10/G10) -> -130.462 | I10: =($F10/2)*($H10/$H$4) -> 0 | K10: =IF($E10=0,0,(1 + K$8)^$F10) -> 1 | L10: =IF($G10=0,0,$E10/K10) -> -130.462 | N10: =IF($E10=0,0,(1 + N$8)^$F10) -> 1 | O10: =IF($G10=0,0,$E10/N10) -> -130.462
A11: 1 | B11: =INDEX(Bonds!$A$4:$BB$320,$A$1,COLUMN(first_date)) -> 2025-06-02 | C11: =IF($B11=$A$3,100,0) -> 0 | D11: =IF($A11>0,100*($A$4/2),0) -> 10 | E11: =SUM(C11:D11) -> 10 | F11: =INDEX(Bonds!$A$4:$BB$320,$A$1,COLUMN(first_elap))/INDEX(Bonds!$A$4:$BB$320,$A$1,COLUMN(first_tot)) -> 1 | G11: =IF($E11=0,0,(1 + G$8)^$F11) -> 1.019999623 | H11: =IF($G11=0,0,$E11/G11) -> 9.803925189 | I11: 0.03757387256 | K11: =IF($E11=0,0,(1 + K$8)^$F11) -> 1.024999623 | L11: =IF($G11=0,0,$E11/K11) -> 9.756101146 | N11: =IF($E11=0,0,(1 + N$8)^$F11) -> 1.029999623 | O11: =IF($G11=0,0,$E11/N11) -> 9.708741415
A12: =IF(MAX($A$10:$A11)<=$A$6,$A11+1,0) -> 2 | B12: =IF($A12>0,DATE(YEAR($B11+1),MONTH($B11+1)+6,DAY($B11+1))-1,"") -> 2025-12-02 | C12: =IF($B12=$A$3,100,0) -> 0 | D12: =IF($A12>0,100*($A$4/2),0) -> 10 | E12: 10 | F12: =IF($A12>0,$F11+1,0) -> 2 | G12: 1.040399232 | H12: 9.611694912 | I12: 0.07367428713 | K12: 1.050624228 | L12: 9.518150958 | N12: 1.060899224 | O12: 9.425965986
A13: =IF(MAX($A$10:$A12)<=$A$6,$A12+1,0) -> 3 | B13: =IF($A13>0,DATE(YEAR($B12+1),MONTH($B12+1)+6,DAY($B12+1))-1,"") -> 2026-06-02 | C13: 0 | D13: 10 | E13: 10 | F13: 3 | G13: 1.061206824 | H13: 9.423233786 | I13: 0.1083445799 | K13: 1.076889438 | L13: 9.286004347 | N13: 1.092725801 | O13: 9.151426634
A14: =IF(MAX($A$10:$A13)<=$A$6,$A13+1,0) -> 4 | B14: 2026-12-02 | C14: 100 | D14: 10 | E14: 110 | F14: 4 | G14: 1.082430561 | H14: 101.623147 | I14: 1.557896496 | K14: 1.103811268 | L14: 99.65471743 | N14: 1.125507163 | O14: 97.73371825
A15: =IF(MAX($A$10:$A14)<=$A$6,$A14+1,0) -> 0 | C15: 0 | D15: 0 | E15: 0 | F15: 0 | G15: 0 | H15: 0 | I15: 0 | K15: 0 | L15: 0 | N15: 0 | O15: 0
A16: =IF(MAX($A$10:$A15)<=$A$6,$A15+1,0) -> 0 | C16: 0 | D16: 0 | E16: 0 | F16: 0 | G16: 0 | H16: 0 | I16: 0 | K16: 0 | L16: 0 | N16: 0 | O16: 0
A17: =IF(MAX($A$10:$A16)<=$A$6,$A16+1,0) -> 0 | C17: 0 | D17: 0 | E17: 0 | F17: 0 | G17: 0 | H17: 0 | I17: 0 | K17: 0 | L17: 0 | N17: 0 | O17: 0
A18: =IF(MAX($A$10:$A17)<=$A$6,$A17+1,0) -> 0 | C18: 0 | D18: 0 | E18: =SUM(C18:D18) -> 0 | F18: =IF($A18>0,$F17+1,0) -> 0 | G18: 0 | H18: 0 | I18: 0 | K18: 0 | L18: 0 | N18: 0 | O18: 0
A19: =IF(MAX($A$10:$A18)<=$A$6,$A18+1,0) -> 0 | C19: 0 | D19: 0 | E19: 0 | F19: 0 | G19: 0 | H19: 0 | I19: 0 | K19: 0 | L19: 0 | N19: 0 | O19: 0
A20: =IF(MAX($A$10:$A19)<=$A$6,$A19+1,0) -> 0 | C20: 0 | D20: 0 | E20: 0 | F20: 0 | G20: 0 | H20: 0 | I20: 0 | K20: 0 | L20: 0 | N20: 0 | O20: 0
A21: =IF(MAX($A$10:$A20)<=$A$6,$A20+1,0) -> 0 | C21: 0 | D21: 0 | E21: 0 | F21: 0 | G21: 0 | H21: 0 | I21: 0 | K21: 0 | L21: 0 | N21: 0 | O21: 0
A22: =IF(MAX($A$10:$A21)<=$A$6,$A21+1,0) -> 0 | C22: 0 | D22: 0 | E22: 0 | F22: 0 | G22: 0 | H22: 0 | I22: 0 | K22: 0 | L22: 0 | N22: 0 | O22: 0
A23: =IF(MAX($A$10:$A22)<=$A$6,$A22+1,0) -> 0 | C23: 0 | D23: 0 | E23: 0 | F23: 0 | G23: 0 | H23: 0 | I23: 0 | K23: 0 | L23: 0 | N23: 0 | O23: 0
A24: =IF(MAX($A$10:$A23)<=$A$6,$A23+1,0) -> 0 | C24: 0 | D24: 0 | E24: 0 | F24: 0 | G24: 0 | H24: 0 | I24: 0 | K24: 0 | L24: 0 | N24: 0 | O24: 0
A25: =IF(MAX($A$10:$A24)<=$A$6,$A24+1,0) -> 0 | C25: 0 | D25: 0 | E25: 0 | F25: 0 | G25: 0 | H25: 0 | I25: 0 | K25: 0 | L25: 0 | N25: 0 | O25: 0
A26: =IF(MAX($A$10:$A25)<=$A$6,$A25+1,0) -> 0 | C26: 0 | D26: 0 | E26: 0 | F26: 0 | G26: 0 | H26: 0 | I26: 0 | K26: 0 | L26: 0 | N26: 0 | O26: 0
A27: =IF(MAX($A$10:$A26)<=$A$6,$A26+1,0) -> 0 | C27: 0 | D27: 0 | E27: 0 | F27: 0 | G27: 0 | H27: 0 | I27: 0 | K27: 0 | L27: 0 | N27: 0 | O27: 0
A28: =IF(MAX($A$10:$A27)<=$A$6,$A27+1,0) -> 0 | C28: 0 | D28: 0 | E28: 0 | F28: 0 | G28: 0 | H28: 0 | I28: 0 | K28: 0 | L28: 0 | N28: 0 | O28: 0
A29: =IF(MAX($A$10:$A28)<=$A$6,$A28+1,0) -> 0 | C29: 0 | D29: 0 | E29: 0 | F29: 0 | G29: 0 | H29: 0 | I29: 0 | K29: 0 | L29: 0 | N29: 0 | O29: 0
A30: =IF(MAX($A$10:$A29)<=$A$6,$A29+1,0) -> 0 | C30: 0 | D30: 0 | E30: 0 | F30: 0 | G30: 0 | H30: 0 | I30: 0 | K30: 0 | L30: 0 | N30: 0 | O30: 0
A31: =IF(MAX($A$10:$A30)<=$A$6,$A30+1,0) -> 0 | C31: 0 | D31: 0 | E31: 0 | F31: 0 | G31: 0 | H31: 0 | I31: 0 | K31: 0 | L31: 0 | N31: 0 | O31: 0
A32: =IF(MAX($A$10:$A31)<=$A$6,$A31+1,0) -> 0 | C32: 0 | D32: 0 | E32: 0 | F32: 0 | G32: 0 | H32: 0 | I32: 0 | K32: 0 | L32: 0 | N32: 0 | O32: 0
A33: =IF(MAX($A$10:$A32)<=$A$6,$A32+1,0) -> 0 | C33: 0 | D33: 0 | E33: 0 | F33: 0 | G33: 0 | H33: 0 | I33: 0 | K33: 0 | L33: 0 | N33: 0 | O33: 0
A34: =IF(MAX($A$10:$A33)<=$A$6,$A33+1,0) -> 0 | C34: 0 | D34: 0 | E34: 0 | F34: 0 | G34: 0 | H34: 0 | I34: 0 | K34: 0 | L34: 0 | N34: 0 | O34: 0
A35: =IF(MAX($A$10:$A34)<=$A$6,$A34+1,0) -> 0 | C35: 0 | D35: 0 | E35: 0 | F35: 0 | G35: 0 | H35: 0 | I35: 0 | K35: 0 | L35: 0 | N35: 0 | O35: 0
A36: =IF(MAX($A$10:$A35)<=$A$6,$A35+1,0) -> 0 | C36: 0 | D36: 0 | E36: 0 | F36: 0 | G36: 0 | H36: 0 | I36: 0 | K36: 0 | L36: 0 | N36: 0 | O36: 0
A37: =IF(MAX($A$10:$A36)<=$A$6,$A36+1,0) -> 0 | C37: 0 | D37: 0 | E37: 0 | F37: 0 | G37: 0 | H37: 0 | I37: 0 | K37: 0 | L37: 0 | N37: 0 | O37: 0
A38: =IF(MAX($A$10:$A37)<=$A$6,$A37+1,0) -> 0 | C38: 0 | D38: 0 | E38: 0 | F38: 0 | G38: 0 | H38: 0 | I38: 0 | K38: 0 | L38: 0 | N38: 0 | O38: 0
A39: =IF(MAX($A$10:$A38)<=$A$6,$A38+1,0) -> 0 | C39: 0 | D39: 0 | E39: 0 | F39: 0 | G39: 0 | H39: 0 | I39: 0 | K39: 0 | L39: 0 | N39: 0 | O39: 0
A40: =IF(MAX($A$10:$A39)<=$A$6,$A39+1,0) -> 0 | C40: 0 | D40: 0 | E40: 0 | F40: 0 | G40: 0 | H40: 0 | I40: 0 | K40: 0 | L40: 0 | N40: 0 | O40: 0
A41: =IF(MAX($A$10:$A40)<=$A$6,$A40+1,0) -> 0 | C41: 0 | D41: 0 | E41: 0 | F41: 0 | G41: 0 | H41: 0 | I41: 0 | K41: 0 | L41: 0 | N41: 0 | O41: 0
A42: =IF(MAX($A$10:$A41)<=$A$6,$A41+1,0) -> 0 | C42: 0 | D42: 0 | E42: 0 | F42: 0 | G42: 0 | H42: 0 | I42: =($F42/2)*($H42/$H$4) -> 0 | K42: 0 | L42: 0 | N42: 0 | O42: 0
A43: =IF(MAX($A$10:$A42)<=$A$6,$A42+1,0) -> 0 | C43: 0 | D43: 0 | E43: 0 | F43: 0 | G43: 0 | H43: 0 | I43: 0 | K43: 0 | L43: 0 | N43: 0 | O43: 0
A44: =IF(MAX($A$10:$A43)<=$A$6,$A43+1,0) -> 0 | C44: 0 | D44: 0 | E44: 0 | F44: 0 | G44: 0 | H44: 0 | I44: 0 | K44: 0 | L44: 0 | N44: 0 | O44: 0
A45: =IF(MAX($A$10:$A44)<=$A$6,$A44+1,0) -> 0 | C45: 0 | D45: 0 | E45: 0 | F45: 0 | G45: 0 | H45: 0 | I45: 0 | K45: 0 | L45: 0 | N45: 0 | O45: 0
A46: =IF(MAX($A$10:$A45)<=$A$6,$A45+1,0) -> 0 | C46: 0 | D46: 0 | E46: 0 | F46: 0 | G46: 0 | H46: 0 | I46: 0 | K46: 0 | L46: 0 | N46: 0 | O46: 0
A47: =IF(MAX($A$10:$A46)<=$A$6,$A46+1,0) -> 0 | C47: 0 | D47: 0 | E47: 0 | F47: 0 | G47: 0 | H47: 0 | I47: 0 | K47: 0 | L47: 0 | N47: 0 | O47: 0
A48: =IF(MAX($A$10:$A47)<=$A$6,$A47+1,0) -> 0 | C48: 0 | D48: 0 | E48: 0 | F48: 0 | G48: 0 | H48: 0 | I48: 0 | K48: 0 | L48: 0 | N48: 0 | O48: 0
A49: =IF(MAX($A$10:$A48)<=$A$6,$A48+1,0) -> 0 | C49: 0 | D49: 0 | E49: 0 | F49: 0 | G49: 0 | H49: 0 | I49: 0 | K49: 0 | L49: 0 | N49: 0 | O49: 0
A50: =IF(MAX($A$10:$A49)<=$A$6,$A49+1,0) -> 0 | C50: 0 | D50: 0 | E50: 0 | F50: 0 | G50: 0 | H50: 0 | I50: 0 | K50: 0 | L50: 0 | N50: 0 | O50: 0
A51: =IF(MAX($A$10:$A50)<=$A$6,$A50+1,0) -> 0 | C51: 0 | D51: 0 | E51: 0 | F51: 0 | G51: 0 | H51: 0 | I51: 0 | K51: 0 | L51: 0 | N51: 0 | O51: 0
A52: =IF(MAX($A$10:$A51)<=$A$6,$A51+1,0) -> 0 | C52: 0 | D52: 0 | E52: 0 | F52: 0 | G52: 0 | H52: 0 | I52: 0 | K52: 0 | L52: 0 | N52: 0 | O52: 0
A53: =IF(MAX($A$10:$A52)<=$A$6,$A52+1,0) -> 0 | C53: 0 | D53: 0 | E53: 0 | F53: 0 | G53: 0 | H53: 0 | I53: 0 | K53: 0 | L53: 0 | N53: 0 | O53: 0
A54: =IF(MAX($A$10:$A53)<=$A$6,$A53+1,0) -> 0 | C54: 0 | D54: 0 | E54: 0 | F54: 0 | G54: 0 | H54: 0 | I54: 0 | K54: 0 | L54: 0 | N54: 0 | O54: 0
A55: =IF(MAX($A$10:$A54)<=$A$6,$A54+1,0) -> 0 | C55: 0 | D55: 0 | E55: 0 | F55: 0 | G55: 0 | H55: 0 | I55: 0 | K55: 0 | L55: 0 | N55: 0 | O55: 0
A56: =IF(MAX($A$10:$A55)<=$A$6,$A55+1,0) -> 0 | C56: 0 | D56: 0 | E56: 0 | F56: 0 | G56: 0 | H56: 0 | I56: 0 | K56: 0 | L56: 0 | N56: 0 | O56: 0
A57: =IF(MAX($A$10:$A56)<=$A$6,$A56+1,0) -> 0 | C57: 0 | D57: 0 | E57: 0 | F57: 0 | G57: 0 | H57: 0 | I57: 0 | K57: 0 | L57: 0 | N57: 0 | O57: 0
A58: =IF(MAX($A$10:$A57)<=$A$6,$A57+1,0) -> 0 | C58: 0 | D58: 0 | E58: 0 | F58: 0 | G58: 0 | H58: 0 | I58: 0 | K58: 0 | L58: 0 | N58: 0 | O58: 0
A59: =IF(MAX($A$10:$A58)<=$A$6,$A58+1,0) -> 0 | C59: 0 | D59: 0 | E59: 0 | F59: 0 | G59: 0 | H59: 0 | I59: 0 | K59: 0 | L59: 0 | N59: 0 | O59: 0
A60: =IF(MAX($A$10:$A59)<=$A$6,$A59+1,0) -> 0 | C60: 0 | D60: 0 | E60: 0 | F60: 0 | G60: 0 | H60: 0 | I60: 0 | K60: 0 | L60: 0 | N60: 0 | O60: 0
A61: =IF(MAX($A$10:$A60)<=$A$6,$A60+1,0) -> 0 | C61: 0 | D61: 0 | E61: 0 | F61: 0 | G61: 0 | H61: 0 | I61: 0 | K61: 0 | L61: 0 | N61: 0 | O61: 0
A62: =IF(MAX($A$10:$A61)<=$A$6,$A61+1,0) -> 0 | C62: 0 | D62: 0 | E62: 0 | F62: 0 | G62: 0 | H62: 0 | I62: 0 | K62: 0 | L62: 0 | N62: 0 | O62: 0
A63: =IF(MAX($A$10:$A62)<=$A$6,$A62+1,0) -> 0 | C63: 0 | D63: 0 | E63: 0 | F63: 0 | G63: 0 | H63: 0 | I63: 0 | K63: 0 | L63: 0 | N63: 0 | O63: 0
A64: =IF(MAX($A$10:$A63)<=$A$6,$A63+1,0) -> 0 | C64: 0 | D64: 0 | E64: 0 | F64: 0 | G64: 0 | H64: 0 | I64: 0 | K64: 0 | L64: 0 | N64: 0 | O64: 0
A65: =IF(MAX($A$10:$A64)<=$A$6,$A64+1,0) -> 0 | C65: 0 | D65: 0 | E65: 0 | F65: 0 | G65: 0 | H65: 0 | I65: 0 | K65: 0 | L65: 0 | N65: 0 | O65: 0
A66: =IF(MAX($A$10:$A65)<=$A$6,$A65+1,0) -> 0 | C66: 0 | D66: 0 | E66: 0 | F66: 0 | G66: 0 | H66: 0 | I66: 0 | K66: 0 | L66: 0 | N66: 0 | O66: 0
A67: =IF(MAX($A$10:$A66)<=$A$6,$A66+1,0) -> 0 | C67: 0 | D67: 0 | E67: 0 | F67: 0 | G67: 0 | H67: 0 | I67: 0 | K67: 0 | L67: 0 | N67: 0 | O67: 0
A68: =IF(MAX($A$10:$A67)<=$A$6,$A67+1,0) -> 0 | C68: 0 | D68: 0 | E68: 0 | F68: 0 | G68: 0 | H68: 0 | I68: 0 | K68: 0 | L68: 0 | N68: 0 | O68: 0
A69: =IF(MAX($A$10:$A68)<=$A$6,$A68+1,0) -> 0 | C69: 0 | D69: 0 | E69: 0 | F69: 0 | G69: 0 | H69: 0 | I69: 0 | K69: 0 | L69: 0 | N69: 0 | O69: 0
A70: =IF(MAX($A$10:$A69)<=$A$6,$A69+1,0) -> 0 | C70: 0 | D70: 0 | E70: 0 | F70: 0 | G70: 0 | H70: 0 | I70: 0 | K70: 0 | L70: 0 | N70: 0 | O70: 0
A71: =IF(MAX($A$10:$A70)<=$A$6,$A70+1,0) -> 0 | C71: 0 | D71: 0 | E71: 0 | F71: 0 | G71: 0 | H71: 0 | I71: 0 | K71: 0 | L71: 0 | N71: 0 | O71: 0
A72: =IF(MAX($A$10:$A71)<=$A$6,$A71+1,0) -> 0 | C72: 0 | D72: 0 | E72: =SUM(C72:D72) -> 0 | F72: =IF($A72>0,$F71+1,0) -> 0 | G72: 0 | H72: 0 | I72: 0 | K72: 0 | L72: 0 | N72: 0 | O72: 0
A73: =IF(MAX($A$10:$A72)<=$A$6,$A72+1,0) -> 0 | C73: 0 | D73: 0 | E73: =SUM(C73:D73) -> 0 | F73: =IF($A73>0,$F72+1,0) -> 0 | G73: 0 | H73: 0 | I73: 0 | K73: 0 | L73: 0 | N73: 0 | O73: 0
A74: =IF(MAX($A$10:$A73)<=$A$6,$A73+1,0) -> 0 | C74: 0 | D74: 0 | E74: =SUM(C74:D74) -> 0 | F74: =IF($A74>0,$F73+1,0) -> 0 | G74: 0 | H74: 0 | I74: 0 | K74: 0 | L74: 0 | N74: 0 | O74: 0
A75: =IF(MAX($A$10:$A74)<=$A$6,$A74+1,0) -> 0 | C75: 0 | D75: 0 | E75: =SUM(C75:D75) -> 0 | F75: =IF($A75>0,$F74+1,0) -> 0 | G75: =IF($E75=0,0,(1 + G$8)^$F75) -> 0 | H75: =IF($G75=0,0,$E75/G75) -> 0 | I75: 0 | K75: =IF($E75=0,0,(1 + K$8)^$F75) -> 0 | L75: =IF($G75=0,0,$E75/K75) -> 0 | N75: =IF($E75=0,0,(1 + N$8)^$F75) -> 0 | O75: =IF($G75=0,0,$E75/N75) -> 0

Sheet WSJ
B1: To update copy and paste from WSJ TIPS Web Page into the green cells
B2: (http://online.wsj.com/mdc/public/page/2_3020-tips.html?mod=mdc_bnd_pglnk)
B4: Maturity | C4: Coupon | D4: Bid | E4: Asked | F4: Chg | G4: Yield* | H4: Accrued
A5: Mat Date | H5: principal | I5: Ask Price
A6: =DATE(VALUE(LEFT(TRIM($B6),4)),INT((SEARCH(TRIM(MID(TRIM($B6),5,4)),"JanFebMarAprMayJunJulAugSepOctNovDec")-1)/3)+1,VALUE(RIGHT(TRIM($B6),2))) -> 2025-01-15 | B6: 2025 Jan 15 | C6: 0.25 | D6: 99.19 | E6: 99.19 | F6: 1 | G6: 3.615 | H6: 1331 | I6: =INT($E6)+(100*MOD($E6,1))/32 -> 99.59375
A7: 2025-01-15 | B7: 2025 Jan 15 | C7: 2.375 | D7: 99.26 | E7: 99.26 | F7: 1 | G7: 3.901 | H7: 1672 | I7: 99.8125
A8: 2025-04-15 | B8: 2025 Apr 15 | C8: 0.125 | D8: 99.02 | E8: 99.02 | F8: 2 | G8: 2.69 | H8: 1220 | I8: 99.0625
A9: 2025-07-15 | B9: 2025 Jul 15 | C9: 0.375 | D9: 99.04 | E9: 99.04 | F9: 3 | G9: 1.798 | H9: 1329 | I9: 99.125
A10: 2025-10-15 | B10: 2025 Oct 15 | C10: 0.125 | D10: 98.23 | E10: 98.24 | F10: 4 | G10: 1.596 | H10: 1215 | I10: 98.75
A11: 2026-01-15 | B11: 2026 Jan 15 | C11: 0.625 | D11: 98.16 | E11: 98.17 | F11: 2 | G11: 1.96 | H11: 1326 | I11: 98.53125
A12: 2026-01-15 | B12: 2026 Jan 15 | C12: 2 | D12: 99.32 | E12: 100 | F12: 1 | G12: 1.987 | H12: 1588 | I12: 100
A13: 2026-04-15 | B13: 2026 Apr 15 | C13: 0.125 | D13: 97.19 | E13: 97.2 | F13: 6 | G13: 1.892 | H13: 1202 | I13: 97.625
A14: 2026-07-15 | B14: 2026 Jul 15 | C14: 0.125 | D14: 97.21 | E14: 97.21 | F14: 2 | G14: 1.589 | H14: 1315 | I14: 97.65625
A15: 2026-10-15 | B15: 2026 Oct 15 | C15: 0.125 | D15: 97.1 | E15: 97.1 | F15: 7 | G15: 1.585 | H15: 1153 | I15: 97.3125
A16: 2027-01-15 | B16: 2027 Jan 15 | C16: 0.375 | D16: 97.05 | E16: 97.05 | F16: 7 | G16: 1.74 | H16: 1305 | I16: 97.15625
A17: 2027-01-15 | B17: 2027 Jan 15 | C17: 2.375 | D17: 101.08 | E17: 101.09 | F17: 3 | G17: 1.752 | H17: 1563 | I17: 101.28125
A18: 2027-04-15 | B18: 2027 Apr 15 | C18: 0.125 | D18: 96.06 | E18: 96.07 | F18: 7 | G18: 1.767 | H18: 1116 | I18: 96.21875
A19: 2027-07-15 | B19: 2027 Jul 15 | C19: 0.375 | D19: 96.28 | E19: 96.29 | F19: 3 | G19: 1.588 | H19: 1288 | I19: 96.90625
A20: 2027-10-15 | B20: 2027 Oct 15 | C20: 1.625 | D20: 99.3 | E20: 99.32 | F20: 4 | G20: 1.63 | H20: 1064 | I20: 100
A21: 2028-01-15 | B21: 2028 Jan 15 | C21: 0.5 | D21: 96.07 | E21: 96.08 | F21: 8 | G21: 1.741 | H21: 1278 | I21: 96.25
A22: 2028-01-15 | B22: 2028 Jan 15 | C22: 1.75 | D22: 100 | E22: 100.02 | F22: 8 | G22: 1.734 | H22: 1504 | I22: 100.0625
A23: 2028-04-15 | B23: 2028 Apr 15 | C23: 3.625 | D23: 105.28 | E23: 105.3 | F23: 5 | G23: 1.803 | H23: 1949 | I23: 105.9375
A24: 2028-04-15 | B24: 2028 Apr 15 | C24: 1.25 | D24: 98.09 | E24: 98.11 | F24: 8 | G24: 1.759 | H24: 1051 | I24: 98.34375
A25: 2028-07-15 | B25: 2028 Jul 15 | C25: 0.75 | D25: 96.28 | E25: 96.3 | F25: 6 | G25: 1.627 | H25: 1256 | I25: 96.9375
A26: 2028-10-15 | B26: 2028 Oct 15 | C26: 2.375 | D26: 102.22 | E26: 102.24 | F26: 10 | G26: 1.64 | H26: 1029 | I26: 102.75
A27: 2029-01-15 | B27: 2029 Jan 15 | C27: 0.875 | D27: 96.19 | E27: 96.2 | F27: 10 | G27: 1.724 | H27: 1248 | I27: 96.625
A28: 2029-01-15 | B28: 2029 Jan 15 | C28: 2.5 | D28: 102.31 | E28: 103.01 | F28: 11 | G28: 1.738 | H28: 1468 | I28: 103.03125
A29: 2029-04-15 | B29: 2029 Apr 15 | C29: 3.875 | D29: 108.22 | E29: 108.24 | F29: 11 | G29: 1.78 | H29: 1917 | I29: 108.75
A30: 2029-04-15 | B30: 2029 Apr 15 | C30: 2.125 | D30: 101.11 | E30: 101.13 | F30: 11 | G30: 1.788 | H30: 1019 | I30: 101.40625
A31: 2029-07-15 | B31: 2029 Jul 15 | C31: 0.25 | D31: 93.27 | E31: 93.29 | F31: 12 | G31: 1.623 | H31: 1232 | I31: 93.90625
A32: 2029-10-15 | B32: 2029 Oct 15 | C32: 1.625 | E32: 99.1984 | G32: 1.71 | H32: 1000 | I32: 99.62 | J32: <- from Bloomberg 11/29 1:59 PM
A33: 2030-01-15 | B33: 2030 Jan 15 | C33: 0.125 | D33: 92.01 | E33: 92.03 | F33: 14 | G33: 1.747 | H33: 1225 | I33: =INT($E33)+(100*MOD($E33,1))/32 -> 92.09375
A34: 2030-07-15 | B34: 2030 Jul 15 | C34: 0.125 | D34: 91.18 | E34: 91.2 | F34: 12 | G34: 1.692 | H34: 1229 | I34: 91.625
A35: 2031-01-15 | B35: 2031 Jan 15 | C35: 0.125 | D35: 90.12 | E35: 90.14 | F35: 14 | G35: 1.779 | H35: 1211 | I35: 90.4375
A36: 2031-07-15 | B36: 2031 Jul 15 | C36: 0.125 | D36: 89.29 | E36: 89.31 | F36: 16 | G36: 1.734 | H36: 1176 | I36: 89.96875
A37: 2032-01-15 | B37: 2032 Jan 15 | C37: 0.125 | D37: 88.27 | E37: 88.3 | F37: 23 | G37: 1.785 | H37: 1137 | I37: 88.9375
A38: 2032-04-15 | B38: 2032 Apr 15 | C38: 3.375 | D38: 111.02 | E38: 111.05 | F38: 26 | G38: 1.754 | H38: 1776 | I38: 111.15625
A39: =DATE(VALUE(LEFT(TRIM($B39),4)),INT((SEARCH(TRIM(MID(TRIM($B39),5,4)),"JanFebMarAprMayJunJulAugSepOctNovDec")-1)/3)+1,VALUE(RIGHT(TRIM($B39),2))) -> 2032-07-15 | B39: 2032 Jul 15 | C39: 0.625 | D39: 91.25 | E39: 91.28 | F39: 21 | G39: 1.77 | H39: 1085 | I39: 91.875
A40: 2033-01-15 | B40: 2033 Jan 15 | C40: 1.125 | D40: 94.14 | E40: 94.17 | F40: 22 | G40: 1.852 | H40: 1058 | I40: 94.53125
A41: 2033-07-15 | B41: 2033 Jul 15 | C41: 1.375 | D41: 96.03 | E41: 96.07 | F41: 21 | G41: 1.853 | H41: 1038 | I41: 96.21875
A42: 2034-01-15 | B42: 2034 Jan 15 | C42: 1.75 | D42: 98.16 | E42: 98.2 | F42: 19 | G42: 1.915 | H42: 1025 | I42: 98.625
A43: 2034-07-15 | B43: 2034 Jul 15 | C43: 1.875 | D43: 99.19 | E43: 99.23 | F43: 15 | G43: 1.908 | H43: 1004 | I43: 99.71875
A44: 2040-02-15 | B44: 2040 Feb 15 | C44: 2.125 | D44: 100.26 | E44: 101.01 | F44: 23 | G44: 2.047 | H44: 1458 | I44: 101.03125
A45: 2041-02-15 | B45: 2041 Feb 15 | C45: 2.125 | D45: 100.31 | E45: 101.06 | F45: 22 | G45: 2.039 | H45: 1439 | I45: 101.1875
A46: 2042-02-15 | B46: 2042 Feb 15 | C46: 0.75 | D46: 80.18 | E46: 80.24 | F46: 24 | G46: 2.088 | H46: 1395 | I46: 80.75
A47: 2043-02-15 | B47: 2043 Feb 15 | C47: 0.625 | D47: 77.09 | E47: 77.15 | F47: 25 | G47: 2.123 | H47: 1371 | I47: 77.46875
A48: 2044-02-15 | B48: 2044 Feb 15 | C48: 1.375 | D48: 87.28 | E48: 88.03 | F48: 25 | G48: 2.133 | H48: 1352 | I48: 88.09375
A49: 2045-02-15 | B49: 2045 Feb 15 | C49: 0.75 | D49: 76.29 | E49: 77.04 | F49: 25 | G49: 2.152 | H49: 1338 | I49: 77.125
A50: 2046-02-15 | B50: 2046 Feb 15 | C50: 1 | D50: 80.01 | E50: 80.08 | F50: 28 | G50: 2.166 | H50: 1330 | I50: 80.25
A51: 2047-02-15 | B51: 2047 Feb 15 | C51: 0.875 | D51: 77.07 | E51: 77.14 | F51: 32 | G51: 2.159 | H51: 1306 | I51: 77.4375
A52: 2048-02-15 | B52: 2048 Feb 15 | C52: 1 | D52: 78.25 | E52: 79.01 | F52: 35 | G52: 2.154 | H52: 1278 | I52: 79.03125
A53: 2049-02-15 | B53: 2049 Feb 15 | C53: 1 | D53: 78.07 | E53: 78.14 | F53: 34 | G53: 2.147 | H53: 1252 | I53: 78.4375
A54: 2050-02-15 | B54: 2050 Feb 15 | C54: 0.25 | D54: 63.06 | E54: 63.13 | F54: 34 | G54: 2.134 | H54: 1226 | I54: 63.40625
A55: 2051-02-15 | B55: 2051 Feb 15 | C55: 0.125 | D55: 60.02 | E55: 60.09 | F55: 36 | G55: 2.104 | H55: 1210 | I55: 60.28125
A56: 2052-02-15 | B56: 2052 Feb 15 | C56: 0.125 | D56: 59.13 | E56: 59.21 | F56: 39 | G56: 2.073 | H56: 1132 | I56: 59.65625
A57: 2053-02-15 | B57: 2053 Feb 15 | C57: 1.5 | D57: 86.22 | E57: 86.31 | F57: 48 | G57: 2.116 | H57: 1060 | I57: 86.96875
A58: 2054-02-15 | B58: 2054 Feb 15 | C58: 2.125 | D58: 99.31 | E58: 100.09 | F58: 58 | G58: 2.112 | H58: 1027 | I58: 100.28125
I59: 0
I60: 0
I61: 0

Sheet Weight
F1: 315.31271 | G1: ="<-- Reference CPI on " & TEXT(settle_date,"mm/dd/yyyy") -> <-- Reference CPI on 12/02/2024
P2: YTM Sensitivity | T2: Weighted Product
A3: Lookup Key | B3: Matures | C3: Coupon | D3: Years | E3: Dated Date | F3: Ref CPI on Dated Date | G3: Face Value (000) | H3: Index Ratio | I3: Adjusted Value (000) | J3: Price | K3: Market Value (000) | L3: YTM | M3: Life | N3: Mac Dur | O3: Mod Dur | P3: =TEXT(INDEX([0]!ytm_sensitive,1,1),"+0.0%;[red]-0.0%")&" Chg" -> +1.0% Chg | Q3: =TEXT(INDEX([0]!ytm_sensitive,1,2),"+0.0%;-0.0%")&" Chg" -> +2.0% Chg | R3: =TEXT(INDEX([0]!ytm_sensitive,1,3),"+0.0%;-0.0%")&" Chg" -> +3.0% Chg | S3: Group | T3: YTM | U3: Life | V3: Mac Dur | W3: Mod Dur | X3: =TEXT(INDEX([0]!ytm_sensitive,1,1),"+0.0%;-0.0%")&" Chg" -> +1.0% Chg | Y3: =TEXT(INDEX([0]!ytm_sensitive,1,2),"+0.0%;-0.0%")&" Chg" -> +2.0% Chg | Z3: =TEXT(INDEX([0]!ytm_sensitive,1,3),"+0.0%;-0.0%")&" Chg" -> +3.0% Chg
A4: =TEXT(B4,"yyyymmdd")&TEXT(1000*C4,"00000") -> 2025011502375 | B4: 2025-01-15 | C4: 2.375 | D4: 20.5 | E4: 2004-07-15 | F4: 188.49677 | G4: 28000012 | H4: =ROUND($F$1/$F4,5) -> 1.67278 | I4: =$G4*$H4 -> 46837860.07 | J4: =VLOOKUP($A4,tips_tbl,4,FALSE) -> 99.8125 | K4: =$I4*($J4/100) -> 46750039.09 | L4: =VLOOKUP($A4,tips_tbl,11,FALSE) -> 0.03944396973 | M4: =VLOOKUP($A4,tips_tbl,12,FALSE) -> 0.1195652174 | N4: =VLOOKUP($A4,tips_tbl,13,FALSE) -> 0.1195652185 | O4: =VLOOKUP($A4,tips_tbl,14,FALSE) -> 0.001172527613 | P4: =VLOOKUP($A4,tips_tbl,15,FALSE) -> -0.001168969457 | Q4: =VLOOKUP($A4,tips_tbl,16,FALSE) -> -0.002330901444 | R4: =VLOOKUP($A4,tips_tbl,17,FALSE) -> -0.003485863241 | S4: =IF($M4<=1,"A",IF($M4<=5,"B",IF($M4<=10,"C",IF($M4<=15,"D",IF($M4<=20,"E","F"))))) -> A | T4: =$K4*L4 -> 1844007.126 | U4: 5589678.586 | V4: =$K4*N4 -> 5589678.637 | W4: 54815.71174 | X4: -54649.36783 | Y4: -108969.7336 | Z4: -162964.2427
A5: =TEXT(B5,"yyyymmdd")&TEXT(1000*C5,"00000") -> 2025011500250 | B5: 2025-01-15 | C5: 0.25 | D5: 10 | E5: 2015-01-15 | F5: 236.85403 | G5: 41000014 | H5: 1.33125 | I5: 54581268.64 | J5: 99.59375 | K5: 54359532.23 | L5: 0.03684663773 | M5: 0.1195652174 | N5: 0.1195652171 | O5: 0.001174022775 | P5: -0.001170466969 | Q5: -0.002333867193 | R5: -0.003490279633 | S5: A | T5: =$K5*L5 -> 2002965.991 | U5: 6499509.289 | V5: 6499509.274 | W5: 63819.32889 | X5: -63626.03694 | Y5: -126867.9289 | Z5: -189729.9682
A6: 2025041500125 | B6: 2025-04-15 | C6: 0.125 | D6: 5 | E6: 2020-04-15 | F6: 258.30093 | G6: 35553007 | H6: 1.22072 | I6: 43400266.71 | J6: 99.0625 | K6: 42993389.2 | L6: 0.02701258659 | M6: 0.3681318681 | N6: 0.3681318709 | O6: 0.003632260335 | P6: -0.003616766286 | Q6: -0.007202842926 | R6: -0.01075863109 | S6: A | T6: 1161362.649 | U6: 15827236.69 | V6: 15827236.8 | W6: 156163.1823 | X6: -155497.0406 | Y6: -309674.6293 | Z6: -462550.0137
A7: 2025071500375 | B7: 2025-07-15 | C7: 0.375 | D7: 10 | E7: 2015-07-15 | F7: 237.14365 | G7: 41000021 | H7: 1.32963 | I7: 54514857.92 | J7: 99.125 | K7: 54037852.92 | L7: 0.01801276207 | M7: 0.6195652174 | N7: 0.6186228253 | O7: 0.006131010041 | P7: -0.006097180095 | Q7: -0.01212742423 | R7: -0.01809178791 | S7: A | T7: 973370.9873 | U7: 33479974.09 | V7: 33429049.25 | W7: 331306.6188 | X7: -329478.5212 | Y7: -655339.9666 | Z7: -977641.3742
A8: =TEXT(B8,"yyyymmdd")&TEXT(1000*C8,"00000") -> 2025101500125 | B8: 2025-10-15 | C8: 0.125 | D8: 5 | E8: 2020-10-15 | F8: 259.46997 | G8: 34282307 | H8: 1.21522 | I8: 41660545.11 | J8: 98.75 | K8: 41139788.3 | L8: 0.01580399275 | M8: 0.8681318681 | N8: 0.8678172938 | O8: 0.008610135677 | P8: -0.008552062738 | Q8: -0.01698939931 | R8: -0.02531410081 | S8: A | T8: 650172.9159 | U8: 35714761.27 | V8: 35701819.75 | W8: 354219.159 | X8: -351830.0506 | Y8: -698940.2909 | Z8: -1041416.748
A9: 2026011502000 | B9: 2026-01-15 | C9: 2 | D9: 20 | E9: 2006-01-15 | F9: 198.47742 | G9: 20000008 | H9: 1.58866 | I9: 31773212.71 | J9: 100 | K9: 31773212.71 | L9: 0.01999178529 | M9: 1.119565217 | N9: 1.104762839 | O9: 0.01093829041 | P9: -0.01085141112 | Q9: -0.02153144386 | R9: -0.03204363353 | S9: B | T9: =$K9*L9 -> 635203.2464 | U9: =$K9*M9 -> 35572183.79 | V9: =$K9*N9 -> 35101864.67 | W9: 347544.628 | X9: -344784.1938 | Y9: -684123.1455 | Z9: =$K9*R9 -> -1018129.184
A10: =TEXT(B10,"yyyymmdd")&TEXT(1000*C10,"00000") -> 2026011500625 | B10: 2026-01-15 | C10: 0.625 | D10: 10 | E10: 2016-01-15 | F10: 237.61129 | G10: 42426146 | H10: 1.32701 | I10: 56299920 | J10: 98.53125 | K10: 55473014.93 | L10: 0.01957479119 | M10: 1.119565217 | N10: 1.114845631 | O10: 0.01104039955 | P10: -0.01095254706 | Q10: -0.02173180663 | R10: -0.03234135408 | S10: B | T10: =$K10*L10 -> 1085872.684 | U10: =$K10*M10 -> 62105658.02 | V10: 61843848.32 | W10: 612444.249 | X10: -607570.8065 | Y10: -1205528.834 | Z10: =$K10*R10 -> -1794072.418
A11: =TEXT(B11,"yyyymmdd")&TEXT(1000*C11,"00000") -> 2026041500125 | B11: 2026-04-15 | C11: 0.125 | D11: 5 | E11: 2021-04-15 | F11: 262.25027 | G11: 39866366 | H11: 1.20234 | I11: 47932926.5 | J11: 97.625 | K11: 46794519.49 | L11: 0.0189165771 | M11: 1.368131868 | N11: 1.367181335 | O11: 0.01354371301 | P11: -0.01341938711 | Q11: -0.02659396414 | R11: -0.03952936392 | S11: B | T11: =$K11*L11 -> 885192.1359 | U11: =$K11*M11 -> 64021073.37 | V11: 63976593.64 | W11: 633771.5422 | X11: -627953.7715 | Y11: -1244451.773 | Z11: =$K11*R11 -> -1849757.59
A12: =TEXT(B12,"yyyymmdd")&TEXT(1000*C12,"00000") -> 2026071500125 | B12: 2026-07-15 | C12: 0.125 | D12: 10 | E12: 2016-07-15 | F12: 239.70132 | G12: 36841337 | H12: 1.31544 | I12: 48462568.34 | J12: 97.65625 | K12: 47326726.9 | L12: 0.01596679538 | M12: 1.619565217 | N12: 1.617659892 | O12: 0.01604847754 | P12: -0.01588123723 | Q12: -0.03143370666 | R12: -0.04666577948 | S12: B | T12: 755656.1646 | U12: 76648720.74 | V12: 76558547.92 | W12: 759521.9137 | X12: -751606.9771 | Y12: -1487654.451 | Z12: -2208538.601
A13: =TEXT(B13,"yyyymmdd")&TEXT(1000*C13,"00000") -> 2026101500125 | B13: 2026-10-15 | C13: 0.125 | D13: 5 | E13: 2021-10-15 | F13: 273.25771 | G13: 38309759 | H13: 1.1539 | I13: 44205630.91 | J13: 97.3125 | K13: 43017604.58 | L13: 0.01590771973 | M13: 1.868131868 | N13: 1.866226668 | O13: 0.01851500096 | P13: -0.01829961379 | Q13: -0.03617649197 | R13: -0.0536424083 | S13: B | T13: =$K13*L13 -> 684311.9972 | U13: 80362558.01 | V13: 80280600.87 | W13: 796470.99 | X13: -787205.5501 | Y13: -1556226.027 | Z13: -2307567.909
A14: 2027011502375 | B14: 2027-01-15 | C14: 2.375 | D14: 20 | E14: 2007-01-15 | F14: 201.66452 | G14: 16482433 | H14: 1.56355 | I14: 25771108.12 | J14: 101.28125 | K14: 26101300.44 | L14: 0.01756086946 | M14: 2.119565217 | N14: 2.062083554 | O14: 0.02044135159 | P14: -0.02018036165 | Q14: -0.03984931167 | R14: -0.0590222552 | S14: B | T14: =$K14*L14 -> 458361.5296 | U14: 55323408.54 | V14: =$K14*N14 -> 53823062.37 | W14: 533545.8592 | X14: -526733.6825 | Y14: -1040118.856 | Z14: =$K14*R14 -> -1540557.616
A15: =TEXT(B15,"yyyymmdd")&TEXT(1000*C15,"00000") -> 2027011500375 | B15: 2027-01-15 | C15: 0.375 | D15: 10 | E15: 2017-01-15 | F15: 241.55919 | G15: 38479618 | H15: 1.30532 | I15: 50228214.97 | J15: 97.15625 | K15: 48799850.1 | L15: 0.01747447252 | M15: 2.119565217 | N15: 2.110032893 | O15: 0.0209175672 | P15: -0.02064903072 | Q15: -0.04077185551 | R15: -0.06038438052 | S15: B | T15: 852751.6398 | U15: 103434464.9 | V15: =$K15*N15 -> 102969288.9 | W15: =$K15*O15 -> 1020774.144 | X15: =$K15*P15 -> -1007669.604 | Y15: =$K15*Q15 -> -1989660.437 | Z15: =$K15*R15 -> -2946748.718
A16: =TEXT(B16,"yyyymmdd")&TEXT(1000*C16,"00000") -> 2027041500125 | B16: 2027-04-15 | C16: 0.125 | D16: 5 | E16: 2022-04-15 | F16: 282.3464 | G16: 39375932 | H16: =ROUND($F$1/$F16,5) -> 1.11676 | I16: =$G16*$H16 -> 43973465.82 | J16: =VLOOKUP($A16,tips_tbl,4,FALSE) -> 96.21875 | K16: =$I16*($J16/100) -> 42310719.14 | L16: =VLOOKUP($A16,tips_tbl,11,FALSE) -> 0.01762272418 | M16: =VLOOKUP($A16,tips_tbl,12,FALSE) -> 2.368131868 | N16: =VLOOKUP($A16,tips_tbl,13,FALSE) -> 2.3649336 | O16: =VLOOKUP($A16,tips_tbl,14,FALSE) -> 0.02344277323 | P16: =VLOOKUP($A16,tips_tbl,15,FALSE) -> -0.02311332373 | Q16: =VLOOKUP($A16,tips_tbl,16,FALSE) -> -0.04558218068 | R16: =VLOOKUP($A16,tips_tbl,17,FALSE) -> -0.06742756763 | S16: =IF($M16<=1,"A",IF($M16<=5,"B",IF($M16<=10,"C",IF($M16<=15,"D",IF($M16<=20,"E","F"))))) -> B | T16: =$K16*L16 -> 745630.1331 | U16: 100197362.4 | V16: 100062041.3 | W16: 991880.5943 | X16: -977941.3488 | Y16: -1928614.845 | Z16: =$K16*R16 -> -2852908.877
A17: =TEXT(B17,"yyyymmdd")&TEXT(1000*C17,"00000") -> 2027071500375 | B17: 2027-07-15 | C17: 0.375 | D17: 10 | E17: 2017-07-15 | F17: 244.61839 | G17: 36918699 | H17: 1.289 | I17: 47588203.01 | J17: 96.90625 | K17: 46115942.98 | L17: 0.01585330814 | M17: 2.619565217 | N17: 2.605253181 | O17: 0.02584764646 | P17: -0.02545293468 | Q17: -0.05013496983 | R17: -0.07407308854 | S17: B | T17: 731090.2543 | U17: 120803720.2 | V17: 120143707.2 | W17: 1191988.59 | X17: -1173786.084 | Y17: -2312021.41 | Z17: =$K17*R17 -> -3415950.328
A18: =TEXT(B18,"yyyymmdd")&TEXT(1000*C18,"00000") -> 2027101501625 | B18: 2027-10-15 | C18: 1.625 | D18: 5 | E18: 2027-10-15 | F18: 296.22858 | G18: 40000000 | H18: 1.06442 | I18: 42576800 | J18: 100 | K18: 42576800 | L18: 0.01624771208 | M18: 2.868131868 | N18: 2.808331402 | O18: 0.0278570077 | P18: -0.02740050698 | Q18: -0.05391086365 | R18: -0.07956422176 | S18: B | T18: =$K18*L18 -> 691775.5875 | U18: 122115876.9 | V18: 119569764.4 | W18: 1186062.246 | X18: -1166625.906 | Y18: -2295352.06 | Z18: -3387589.957
A19: 2028011501750 | B19: 2028-01-15 | C19: 1.75 | D19: 20 | E19: 2008-01-15 | F19: 209.49645 | G19: 15635247 | H19: 1.5051 | I19: 23532610.26 | J19: 100.0625 | K19: 23547318.14 | L19: 0.01729106903 | M19: 3.119565217 | N19: 3.029831263 | O19: 0.03003861277 | P19: -0.02951097536 | Q19: -0.05799470247 | R19: -0.08549184431 | S19: B | T19: =$K19*L19 -> 407158.3035 | U19: 73457394.64 | V19: 71344400.67 | W19: 707328.7714 | X19: -694904.3255 | Y19: -1365619.71 | Z19: -2013103.656
A20: =TEXT(B20,"yyyymmdd")&TEXT(1000*C20,"00000") -> 2028011500500 | B20: 2028-01-15 | C20: 0.5 | D20: 10 | E20: 2018-01-15 | F20: 246.66571 | G20: 38821511 | H20: 1.2783 | I20: 49625537.51 | J20: 96.25 | K20: 47764579.85 | L20: 0.01740169525 | M20: 3.119565217 | N20: 3.09278976 | O20: 0.03066111986 | P20: -0.030119627 | Q20: -0.05918512234 | R20: -0.0872383197 | S20: B | T20: =$K20*L20 -> 831184.6624 | U20: 149004721.9 | V20: 147725803.4 | W20: 1464515.508 | X20: -1438651.329 | Y20: -2826952.502 | Z20: -4166901.688
A21: 2028041503625 | B21: 2028-04-15 | C21: 3.625 | D21: 30 | E21: 1998-04-15 | F21: 161.74 | G21: 16806175 | H21: 1.9495 | I21: 32763638.16 | J21: 105.9375 | K21: 34708979.18 | L21: 0.01799780875 | M21: 3.368131868 | N21: 3.193085982 | O21: 0.03164607978 | P21: -0.03105815926 | Q21: -0.06097340473 | R21: -0.08979340621 | S21: B | T21: =$K21*L21 -> 624685.5693 | U21: 116904418.9 | V21: =$K21*N21 -> 110828754.9 | W21: 1098403.124 | X21: -1077997.003 | Y21: -2116324.635 | Z21: =$K21*R21 -> -3116637.467
A22: =TEXT(B22,"yyyymmdd")&TEXT(1000*C22,"00000") -> 2028041501250 | B22: 2028-04-15 | C22: 1.25 | D22: 5 | E22: 2023-04-15 | F22: 299.94933 | G22: 40000173 | H22: 1.05122 | I22: 42048981.86 | J22: 98.34375 | K22: 41352545.6 | L22: 0.01758442074 | M22: 3.368131868 | N22: 3.302894454 | O22: 0.0327410781 | P22: -0.03212604875 | Q22: -0.06305669956 | R22: -0.09284208864 | S22: B | T22: =$K22*L22 -> 727160.5605 | U22: =$K22*M22 -> 139280826.7 | V22: =$K22*N22 -> 136583093.5 | W22: =$K22*O22 -> 1353926.925 | X22: =$K22*P22 -> -1328493.896 | Y22: =$K22*Q22 -> -2607555.044 | Z22: =$K22*R22 -> -3839256.704
A23: =TEXT(B23,"yyyymmdd")&TEXT(1000*C23,"00000") -> 2028071500750 | B23: 2028-07-15 | C23: 0.75 | D23: 10 | E23: 2018-07-15 | F23: 251.01658 | G23: 36671908 | H23: 1.25614 | I23: 46065050.52 | J23: 96.9375 | K23: 44654308.34 | L23: 0.01624567807 | M23: 3.619565217 | N23: 3.566529753 | O23: 0.03537792832 | P23: -0.03466881409 | Q23: -0.0679616854 | R23: -0.09993967398 | S23: B | T23: 725439.5177 | U23: 161629181.3 | V23: 159260919.3 | W23: 1579776.92 | X23: -1548111.914 | Y23: -3034782.055 | Z23: =$K23*R23 -> -4462737.018
A24: =TEXT(B24,"yyyymmdd")&TEXT(1000*C24,"00000") -> 2028101502375 | B24: 2028-10-15 | C24: 2.375 | D24: 5 | E24: 2023-10-15 | F24: 306.2939 | G24: 42000059 | H24: 1.02944 | I24: 43236540.74 | J24: =VLOOKUP($A24,tips_tbl,4,FALSE) -> 102.75 | K24: 44425545.61 | L24: 0.0163814202 | M24: 3.868131868 | N24: 3.710367959 | O24: 0.03680224309 | P24: -0.03602793239 | Q24: -0.07055558882 | R24: -0.1036527266 | S24: B | T24: 727753.53 | U24: 171843868.7 | V24: 164835121 | W24: 1634959.729 | X24: -1600560.553 | Y24: -3134470.529 | Z24: =$K24*R24 -> -4604828.933
A25: 2029011502500 | B25: 2029-01-15 | C25: 2.5 | D25: 20 | E25: 2009-01-15 | F25: 214.69971 | G25: 14150305 | H25: 1.46862 | I25: 20781420.93 | J25: 103.03125 | K25: 21411357.75 | L25: 0.01734153554 | M25: 4.119565217 | N25: 3.907904445 | O25: 0.03874311193 | P25: -0.03788360123 | Q25: -0.07410451801 | R25: -0.1087438347 | S25: B | T25: 371305.8214 | U25: 88205484.65 | V25: 83673540.13 | W25: 829542.6298 | X25: -811139.3387 | Y25: -1586678.346 | Z25: =$K25*R25 -> -2328353.148
A26: =TEXT(B26,"yyyymmdd")&TEXT(1000*C26,"00000") -> 2029011500875 | B26: 2029-01-15 | C26: 0.875 | D26: 10 | E26: 2019-01-15 | F26: 252.50248 | G26: 36155544 | H26: 1.24875 | I26: 45149235.57 | J26: 96.625 | K26: 43625448.87 | L26: 0.01727198064 | M26: 4.119565217 | N26: 4.040109867 | O26: 0.0400551825 | P26: -0.03915806679 | Q26: -0.07658095002 | R26: -0.1123536917 | S26: B | T26: =$K26*L26 -> 753497.9084 | U26: 179717881.8 | V26: 176251606.4 | W26: 1747425.316 | X26: -1708288.241 | Y26: -3340878.319 | Z26: -4901480.233
A27: 2029041503875 | B27: 2029-04-15 | C27: 3.875 | D27: 30 | E27: 1999-04-15 | F27: 164.39333 | G27: 19718961 | H27: 1.91804 | I27: 37821755.96 | J27: 108.75 | K27: 41131159.6 | L27: 0.01783501357 | M27: 4.368131868 | N27: 4.057475628 | O27: 0.04021612868 | P27: -0.03928540507 | Q27: -0.07677295997 | R27: -0.1125540357 | S27: B | T27: =$K27*L27 -> 733574.7896 | U27: 179666329 | V27: 166888677.6 | W27: 1654136.007 | X27: -1615854.266 | Y27: -3157760.87 | Z27: -4629478.005
A28: =TEXT(B28,"yyyymmdd")&TEXT(1000*C28,"00000") -> 2029041502125 | B28: 2029-04-15 | C28: 2.125 | D28: 5 | E28: 2024-04-15 | F28: 309.30787 | G28: 44109655 | H28: 1.01941 | I28: 44965823.4 | J28: 101.40625 | K28: 45598155.3 | L28: 0.01788669825 | M28: 4.368131868 | N28: 4.185096245 | O28: 0.0414799924 | P28: -0.04051008149 | Q28: -0.07914692406 | R28: -0.1160062466 | S28: B | T28: =$K28*L28 -> 815600.4443 | U28: =$K28*M28 -> 199178755.3 | V28: =$K28*N28 -> 190832668.5 | W28: =$K28*O28 -> 1891411.135 | X28: =$K28*P28 -> -1847184.987 | Y28: =$K28*Q28 -> -3608953.734 | Z28: =$K28*R28 -> -5289670.846
A29: 2029071500250 | B29: 2029-07-15 | C29: 0.25 | D29: 10 | E29: 2019-07-15 | F29: 255.79368 | G29: 39802749 | H29: 1.23268 | I29: 49064052.64 | J29: 93.90625 | K29: 46074211.93 | L29: 0.01624561846 | M29: 4.619565217 | N29: 4.590335972 | O29: 0.04553349979 | P29: -0.04440048809 | Q29: -0.08661690185 | R29: -0.1267666987 | S29: B | T29: 748504.068 | U29: 212842826.8 | V29: 211496112.4 | W29: 2097920.119 | X29: -2045717.498 | Y29: -3990805.493 | Z29: -5840675.741
A30: =TEXT(B30,"yyyymmdd")&TEXT(1000*C30,"00000") -> 2029101501625 | B30: 2029-10-15 | C30: 1.625 | D30: 5 | E30: 2024-10-15 | F30: 314.65561 | G30: 24404854 | H30: 1.00209 | I30: 24455860.14 | J30: 99.62 | K30: 24362927.88 | L30: 0.01706534252 | M30: 4.868131868 | N30: 4.690203277 | O30: 0.04650521902 | P30: -0.04530545634 | Q30: -0.08830140765 | R30: -0.1291166911 | S30: B | T30: =$K30*L30 -> 415761.7089 | U30: 118601945.6 | V30: 114267084.2 | W30: 1133003.297 | X30: -1103773.565 | Y30: -2151280.826 | Z30: -3145660.632
A31: 2030011500125 | B31: 2030-01-15 | C31: 0.125 | D31: 10 | E31: 2020-01-15 | F31: 257.28368 | G31: 41059044 | H31: 1.22554 | I31: 50319500.78 | J31: 92.09375 | K31: 46341115.25 | L31: 0.01746090874 | M31: 5.119565217 | N31: 5.101425612 | O31: 0.05057273318 | P31: -0.04919344838 | Q31: -0.09573669308 | R31: -0.1397845424 | S31: C | T31: 809157.9844 | U31: 237246361.8 | V31: 236405752.2 | W31: 2343596.857 | X31: -2279679.261 | Y31: -4436545.128 | Z31: -6477771.589
A32: 2030071500125 | B32: 2030-07-15 | C32: 0.125 | D32: 10 | E32: 2020-07-15 | F32: 256.39126 | G32: 42898589 | H32: 1.22981 | I32: 52757113.74 | J32: 91.625 | K32: 48338705.46 | L32: 0.01693663374 | M32: 5.619565217 | N32: 5.597728799 | O32: 0.05550723513 | P32: -0.05386112055 | Q32: -0.1045696649 | R32: -0.1523243843 | S32: C | T32: 818694.9497 | U32: 271642507.9 | V32: 270586963.7 | W32: 2683147.89 | X32: -2603576.842 | Y32: -5054762.234 | Z32: -7363163.548
A33: 2031011500125 | B33: 2031-01-15 | C33: 0.125 | D33: 10 | E33: 2021-01-15 | F33: 260.31619 | G33: 43334498 | H33: 1.21127 | I33: 52489777.39 | J33: 90.4375 | K33: 47470442.43 | L33: 0.01781256869 | M33: 6.119565217 | N33: 6.093535354 | O33: 0.0603974368 | P33: -0.05846415846 | Q33: -0.1132377104 | R33: -0.1645701797 | S33: C | T33: 845570.5167 | U33: 290498468.3 | V33: 289262819.2 | W33: 2867093.046 | X33: -2775319.469 | Y33: -5375444.214 | Z33: =$K33*R33 -> -7812219.239
A34: 2031071500125 | B34: 2031-07-15 | C34: 0.125 | D34: 10 | E34: 2021-07-15 | F34: 268.0209 | G34: 46840116 | H34: 1.17645 | I34: 55105054.47 | J34: 89.96875 | K34: 49577328.69 | L34: 0.01735666394 | M34: 6.619565217 | N34: 6.589098588 | O34: 0.06532408181 | P34: -0.06307860075 | Q34: -0.121884493 | R34: -0.1767261623 | S34: C | T34: =$K34*L34 -> 860497.0333 | U34: 328180360.6 | V34: =$K34*N34 -> 326669906.5 | W34: 3238593.475 | X34: -3127268.523 | Y34: -6042707.57 | Z34: -8761611.037
A35: =TEXT(B35,"yyyymmdd")&TEXT(1000*C35,"00000") -> 2032011500125 | B35: 2032-01-15 | C35: 0.125 | D35: 10 | E35: 2022-01-15 | F35: 277.20274 | G35: 51102456 | H35: 1.13748 | I35: 58128021.65 | J35: 88.9375 | K35: 51697609.26 | L35: 0.01786648482 | M35: 7.119565217 | N35: 7.084144367 | O35: 0.07021420317 | P35: -0.0676362507 | Q35: -0.1303830187 | R35: -0.1886154519 | S35: C | T35: =$K35*L35 -> 923654.551 | U35: =$K35*M35 -> 368064500.7 | V35: =$K35*N35 -> 366233327.4 | W35: =$K35*O35 -> 3629906.44 | X35: =$K35*P35 -> -3496632.46 | Y35: =$K35*Q35 -> -6740490.353 | Z35: -9750967.933
A36: 2032041503375 | B36: 2032-04-15 | C36: 3.375 | D36: 30.5 | E36: 2001-10-15 | F36: 177.5 | G36: 5000011 | H36: 1.77641 | I36: 8882069.541 | J36: 111.15625 | K36: 9872975.424 | L36: 0.01754096523 | M36: 7.368131868 | N36: 6.608333669 | O36: 0.06550879296 | P36: -0.06311218039 | Q36: -0.1216817115 | R36: -0.1760609822 | S36: C | T36: 173181.5186 | U36: 72745384.85 | V36: 65243915.91 | W36: 646766.703 | X36: -623105.0059 | Y36: -1201360.547 | Z36: =$K36*R36 -> -1738245.751
A37: 2032071500625 | B37: 2032-07-15 | C37: 0.625 | D37: 10 | E37: 2022-07-15 | F37: 290.54829 | G37: 48630848 | H37: 1.08523 | I37: 52775655.18 | J37: 91.875 | K37: 48487633.19 | L37: 0.01769502647 | M37: 7.619565217 | N37: 7.424519864 | O37: 0.07359407409 | P37: -0.07073699436 | Q37: -0.1360717096 | R37: -0.1964417535 | S37: C | T37: =$K37*L37 -> 857989.9529 | U37: =$K37*M37 -> 369454683.3 | V37: =$K37*N37 -> 359997395.8 | W37: =$K37*O37 -> 3568402.47 | X37: =$K37*P37 -> -3429869.435 | Y37: =$K37*Q37 -> -6597795.145 | Z37: -9524995.687
A38: 2033011501125 | B38: 2033-01-15 | C38: 1.125 | D38: 10 | E38: 2023-01-15 | F38: 297.87606 | G38: 49817124 | H38: 1.05854 | I38: 52733418.44 | J38: 94.53125 | K38: 49849559.62 | L38: 0.0185352806 | M38: 8.119565217 | N38: 7.73552233 | O38: 0.07664490588 | P38: -0.07351427381 | Q38: -0.1411267333 | R38: -0.2033399815 | S38: C | T38: 923975.5753 | U38: 404756750.4 | V38: 385612381.6 | W38: 3820714.805 | X38: -3664654.175 | Y38: -7035105.506 | Z38: -10136408.53
A39: 2033071501375 | B39: 2033-07-15 | C39: 1.375 | D39: 10 | E39: 2023-01-15 | F39: 303.70803 | G39: 47172837 | H39: 1.03821 | I39: 48975311.1 | J39: 96.21875 | K39: 47123432.15 | L39: 0.01851569861 | M39: 8.619565217 | N39: 8.102759559 | O39: 0.08028433531 | P39: -0.07683511294 | Q39: -0.1471877633 | R39: -0.2116376065 | S39: C | T39: 872523.2673 | U39: 406183496.7 | V39: 381829840.3 | W39: 3783273.428 | X39: -3620734.231 | Y39: -6935992.578 | Z39: -9973090.388
A40: =TEXT(B40,"yyyymmdd")&TEXT(1000*C40,"00000") -> 2034011501750 | B40: 2034-01-15 | C40: 1.75 | D40: 10 | E40: 2024-01-15 | F40: 307.391 | G40: 50949911 | H40: 1.02577 | I40: 52262890.21 | J40: 98.625 | K40: 51544275.47 | L40: 0.01914950833 | M40: 9.119565217 | N40: 8.40672229 | O40: 0.08326993375 | P40: -0.07952727566 | Q40: -0.1520414619 | R40: -0.2181983138 | S40: C | T40: =$K40*L40 -> 987047.5323 | U40: =$K40*M40 -> 470061381.7 | V40: =$K40*N40 -> 433318409.5 | W40: =$K40*O40 -> 4292088.403 | X40: =$K40*P40 -> -4099175.804 | Y40: =$K40*Q40 -> -7836866.994 | Z40: =$K40*R40 -> -11246873.99
A41: 2034071501875 | B41: 2034-07-15 | C41: 1.875 | D41: 10 | E41: 2024-01-15 | F41: 313.78329 | G41: 54398584 | H41: 1.00487 | I41: 54663505.1 | J41: 99.71875 | K41: 54509764 | L41: 0.01907047257 | M41: 9.619565217 | N41: 8.78297014 | O41: 0.08700013456 | P41: -0.08290620019 | Q41: -0.1581646703 | R41: -0.2265227941 | S41: C | T41: 1039526.959 | U41: 524360229.7 | V41: 478757629.5 | W41: 4742356.802 | X41: -4519197.406 | Y41: -8621518.85 | Z41: -12347704.04
A42: 2040021502125 | B42: 2040-02-15 | C42: 2.125 | D42: 30 | E42: 2010-02-15 | F42: 216.1395 | G42: 15171391 | H42: 1.45884 | I42: 22132632.05 | J42: 101.03125 | K42: 22360874.81 | L42: 0.02045634016 | M42: 15.20380435 | N42: 13.00483601 | O42: 0.1287316707 | P42: -0.1197157518 | Q42: -0.2231525777 | R42: -0.3126431485 | S42: E | T42: 457421.6616 | U42: 339970365.7 | V42: 290799510 | W42: 2878552.773 | X42: -2676948.939 | Y42: -4989886.854 | Z42: -6990974.305
A43: 2041021502125 | B43: 2041-02-15 | C43: 2.125 | D43: 30 | E43: 2011-02-15 | F43: 218.991 | G43: 23986016 | H43: 1.43984 | I43: 34536025.28 | J43: 101.1875 | K43: 34946140.58 | L43: 0.02038482018 | M43: 16.20380435 | N43: 13.72582995 | O43: 0.1358734219 | P43: -0.1258180876 | Q43: -0.2335892865 | R43: -0.3260410524 | S43: E | T43: 712370.7916 | U43: 566260424.6 | V43: 479664783 | W43: 4748251.702 | X43: -4396856.577 | Y43: -8163044.045 | Z43: -11393876.45
A44: 2042021500750 | B44: 2042-02-15 | C44: 0.75 | D44: 30 | E44: 2012-02-15 | F44: 225.96062 | G44: 23127869 | H44: 1.39543 | I44: 32273322.24 | J44: 80.75 | K44: 26060707.71 | L44: 0.02087607421 | M44: 17.20380435 | N44: 15.97563557 | O44: 0.158106039 | P44: -0.1453456425 | Q44: -0.2679762237 | R44: -0.371568403 | S44: E | T44: 544045.2681 | U44: 448343316.6 | V44: 416336369 | W44: 4120355.269 | X44: -3787810.306 | Y44: -6983650.039 | Z44: -9683335.544
A45: 2043021500625 | B45: 2043-02-15 | C45: 0.625 | D45: 30 | E45: 2013-02-15 | F45: 229.911 | G45: 23000062 | H45: 1.37146 | I45: 31543665.03 | J45: 77.46875 | K45: 24436483 | L45: 0.02123814728 | M45: 18.20380435 | N45: 17.01940159 | O45: 0.1684057034 | P45: -0.1540618147 | Q45: -0.2827531985 | R45: -0.3903900699 | S45: E | T45: =$K45*L45 -> 518985.6251 | U45: 444836955.5 | V45: =$K45*N45 -> 415894317.7 | W45: 4115243.108 | X45: -3764728.917 | Y45: -6909493.728 | Z45: -9539760.307
A46: =TEXT(B46,"yyyymmdd")&TEXT(1000*C46,"00000") -> 2044021501375 | B46: 2044-02-15 | C46: 1.375 | D46: 30 | E46: 2014-02-15 | F46: 233.059 | G46: 23025327 | H46: 1.35293 | I46: 31151655.66 | J46: 88.09375 | K46: 27442661.66 | L46: 0.02133878507 | M46: 19.20380435 | N46: 16.67822046 | O46: 0.1650215252 | P46: -0.1506214613 | Q46: -0.2758891524 | R46: -0.3802605418 | S46: E | T46: 585593.0588 | U46: 527003505.2 | V46: 457694761.1 | W46: 4528629.881 | X46: -4133453.801 | Y46: -7571132.664 | Z46: -10435361.39
A47: 2045021500750 | B47: 2045-02-15 | C47: 0.75 | D47: 30 | E47: 2015-02-15 | F47: 235.4815 | G47: 23000005 | H47: 1.33901 | I47: 30797236.7 | J47: 77.125 | K47: 23752368.8 | L47: 0.02152096853 | M47: 20.20380435 | N47: 18.47292101 | O47: 0.1827625961 | P47: -0.1657627972 | Q47: -0.3018173972 | R47: -0.4136703172 | S47: F | T47: 511173.9814 | U47: 479888212.1 | V47: =$K47*N47 -> 438775632.7 | W47: 4341044.585 | X47: -3937259.092 | Y47: -7168878.129 | Z47: -9825649.936
A48: 2046021501000 | B48: 2046-02-15 | C48: 1 | D48: 30 | E48: 2016-02-15 | F48: 236.94448 | G48: 20377717 | H48: 1.33075 | I48: 27117646.9 | J48: 80.25 | K48: 21761911.64 | L48: 0.02166626137 | M48: 21.20380435 | N48: 18.78167988 | O48: 0.1858039602 | P48: -0.1679327607 | Q48: -0.3048037098 | R48: -0.4165798604 | S48: F | T48: 471499.2653 | U48: 461435316.6 | V48: 408725257.8 | W48: 4043449.363 | X48: -3654537.899 | Y48: -6633111.399 | Z48: -9065574.11
A49: 2047021500875 | B49: 2047-02-15 | C49: 0.875 | D49: 30 | E49: 2017-02-15 | F49: 241.3925 | G49: 18703669 | H49: 1.30622 | I49: 24431106.52 | J49: 77.4375 | K49: 18918838.11 | L49: 0.02159509901 | M49: 22.20380435 | N49: 19.80983467 | O49: 0.195982219 | P49: -0.1762747221 | Q49: -0.3185146578 | R49: -0.4335296483 | S49: F | T49: 408554.1822 | U49: 420070179.9 | V49: 374779055.2 | W49: 3707755.874 | X49: -3334912.931 | Y49: -6025927.247 | Z49: -8201877.234
A50: 2048021501000 | B50: 2048-02-15 | C50: 1 | D50: 30 | E50: 2018-02-15 | F50: 246.5965 | G50: 18706581 | H50: 1.27866 | I50: 23919356.86 | J50: 79.03125 | K50: 18903766.72 | L50: 0.02152821422 | M50: 23.20380435 | N50: 20.29564063 | O50: 0.2007950271 | P50: -0.179917999 | Q50: -0.3239842922 | R50: -0.4396202272 | S50: F | T50: 406964.3394 | U50: 438639304.4 | V50: 383664055.9 | W50: 3795782.351 | X50: -3401127.882 | Y50: -6124523.48 | Z50: -8310478.221
A51: 2049021501000 | B51: 2049-02-15 | C51: 1 | D51: 30 | E51: 2019-02-15 | F51: 251.6355 | G51: 15385028 | H51: 1.25305 | I51: 19278209.34 | J51: =VLOOKUP($A51,tips_tbl,4,FALSE) -> 78.4375 | K51: 15121345.45 | L51: 0.02146928199 | M51: 24.20380435 | N51: 21.03567145 | O51: 0.2081225932 | P51: -0.1856868752 | Q51: -0.3330752111 | R51: -0.4503727775 | S51: F | T51: 324644.4294 | U51: 365994086.7 | V51: 318087654.8 | W51: 3147093.627 | X51: -2807835.384 | Y51: -5036545.327 | Z51: -6810242.349
A52: 2050021500250 | B52: 2050-02-15 | C52: 0.25 | D52: 30 | E52: 2020-02-15 | F52: 257.09503 | G52: 15608124 | H52: 1.22644 | I52: 19142427.6 | J52: 63.40625 | K52: 12137495.5 | L52: 0.02134952042 | M52: 25.20380435 | N52: 24.14471574 | O52: 0.2388969893 | P52: -0.2113290446 | Q52: -0.3760201142 | R52: -0.5045897784 | S52: F | T52: 259129.708 | U52: 305911061.8 | V52: 293056378.6 | W52: 2899611.132 | X52: -2565005.327 | Y52: -4563942.443 | Z52: -6124456.164
A53: 2051021500125 | B53: 2051-02-15 | C53: 0.125 | D53: 30 | E53: 2020-02-15 | F53: 260.3515 | G53: 18005155 | H53: 1.2111 | I53: 21806043.22 | J53: 60.28125 | K53: 13144955.43 | L53: 0.021047391 | M53: 26.20380435 | N53: 25.60393551 | O53: 0.2533729355 | P53: -0.2229089249 | Q53: -0.3946302083 | R53: -0.5271285745 | S53: F | T53: 276667.0166 | U53: 344447840.2 | V53: 336562591.1 | W53: 3330575.944 | X53: -2930127.882 | Y53: -5187396.499 | Z53: -6929081.617
A54: 2052021500125 | B54: 2052-02-15 | C54: 0.125 | D54: 30 | E54: 2021-02-15 | F54: 278.375 | G54: 19583398 | H54: 1.13269 | I54: 22181919.08 | J54: 59.65625 | K54: 13232901.1 | L54: 0.02072666399 | M54: 27.20380435 | N54: 26.55303035 | O54: 0.2628067499 | P54: -0.2301329403 | Q54: -0.405707234 | R54: -0.5398823271 | S54: F | T54: 274273.8948 | U54: 359985252.5 | V54: 351373624.5 | W54: 3477695.73 | X54: -3045326.439 | Y54: -5368683.704 | Z54: -7144209.441
A55: 2053021501500 | B55: 2053-02-15 | C55: 1.5 | D55: 30 | E55: 2022-02-15 | F55: 297.254 | G55: 19876004 | H55: 1.06075 | I55: 21083471.24 | J55: 86.96875 | K55: 18336031.4 | L55: 0.02115854621 | M55: 28.20380435 | N55: 22.52861702 | O55: 0.2229277566 | P55: -0.1961552767 | Q55: -0.347578483 | R55: -0.4649956521 | S55: F | T55: 387963.7676 | U55: 517145842 | V55: 413085429 | W55: 4087610.344 | X55: -3596709.311 | Y55: -6373209.977 | Z55: -8526174.876
A56: 2054021502125 | B56: 2054-02-15 | C56: 2.125 | D56: 30 | E56: 2022-02-15 | F56: 306.90376 | G56: 17389385 | H56: 1.0274 | I56: 17865854.15 | J56: 100.28125 | K56: 17916101.86 | L56: 0.02111984789 | M56: 29.20380435 | N56: 21.78221249 | O56: 0.2155459758 | P56: -0.1895506158 | Q56: -0.3357988918 | R56: -0.4492701697 | S56: F | T56: =$K56*L56 -> 378385.3462 | U56: 523218333.5 | V56: 390252337.8 | W56: 3861743.659 | X56: -3396008.141 | Y56: -6016207.152 | Z56: -8049170.124
C58: =COUNTIF($S$4:$S$56,$S58)+COUNTIF($S$4:$S$56,$T58) -> 27 | E58: 0 - 5 Years | G58: =SUMIF($S$4:$S$56,$S58,G$4:G$56)+SUMIF($S$4:$S$56,$T58,G$4:G$56) -> 896812800 | I58: =SUMIF($S$4:$S$56,$S58,I$4:I$56)+SUMIF($S$4:$S$56,$T58,I$4:I$56) -> 1139317357 | K58: =SUMIF($S$4:$S$56,$S58,K$4:K$56)+SUMIF($S$4:$S$56,$T58,K$4:K$56) -> 1128226831 | L58: =(SUMIF($S$4:$S$56,$S58,T$4:T$56)+SUMIF($S$4:$S$56,$T58,T$4:T$56))/$K58 -> 0.01953450434 | M58: =(SUMIF($S$4:$S$56,$S58,U$4:U$56)+SUMIF($S$4:$S$56,$T58,U$4:U$56))/$K58 -> 2.400252988 | N58: =(SUMIF($S$4:$S$56,$S58,V$4:V$56)+SUMIF($S$4:$S$56,$T58,V$4:V$56))/$K58 -> 2.344709701 | O58: =(SUMIF($S$4:$S$56,$S58,W$4:W$56)+SUMIF($S$4:$S$56,$T58,W$4:W$56))/$K58 -> 0.02324592672 | P58: =(SUMIF($S$4:$S$56,$S58,X$4:X$56)+SUMIF($S$4:$S$56,$T58,X$4:X$56))/$K58 -> -0.02282132914 | Q58: =(SUMIF($S$4:$S$56,$S58,Y$4:Y$56)+SUMIF($S$4:$S$56,$T58,Y$4:Y$56))/$K58 -> -0.04481865265 | R58: =(SUMIF($S$4:$S$56,$S58,Z$4:Z$56)+SUMIF($S$4:$S$56,$T58,Z$4:Z$56))/$K58 -> -0.06602830704 | S58: <=B | T58: X
C59: =COUNTIF($S$4:$S$56,$S59)+COUNTIF($S$4:$S$56,$T59) -> 22 | E59: 1 - 5 Years | G59: =SUMIF($S$4:$S$56,$S59,G$4:G$56)+SUMIF($S$4:$S$56,$T59,G$4:G$56) -> 716977439 | I59: =SUMIF($S$4:$S$56,$S59,I$4:I$56)+SUMIF($S$4:$S$56,$T59,I$4:I$56) -> 898322558.1 | K59: =SUMIF($S$4:$S$56,$S59,K$4:K$56)+SUMIF($S$4:$S$56,$T59,K$4:K$56) -> 888946229.3 | L59: =(SUMIF($S$4:$S$56,$S59,T$4:T$56)+SUMIF($S$4:$S$56,$T59,T$4:T$56))/$K59 -> 0.01733228822 | M59: =(SUMIF($S$4:$S$56,$S59,U$4:U$56)+SUMIF($S$4:$S$56,$T59,U$4:U$56))/$K59 -> 2.937094029 | N59: =(SUMIF($S$4:$S$56,$S59,V$4:V$56)+SUMIF($S$4:$S$56,$T59,V$4:V$56))/$K59 -> 2.866671816 | O59: =(SUMIF($S$4:$S$56,$S59,W$4:W$56)+SUMIF($S$4:$S$56,$T59,W$4:W$56))/$K59 -> 0.02842281502 | P59: =(SUMIF($S$4:$S$56,$S59,X$4:X$56)+SUMIF($S$4:$S$56,$T59,X$4:X$56))/$K59 -> -0.02788982508 | Q59: =(SUMIF($S$4:$S$56,$S59,Y$4:Y$56)+SUMIF($S$4:$S$56,$T59,Y$4:Y$56))/$K59 -> -0.05474550912 | R59: =(SUMIF($S$4:$S$56,$S59,Z$4:Z$56)+SUMIF($S$4:$S$56,$T59,Z$4:Z$56))/$K59 -> -0.08061298074 | S59: B | T59: X
C60: =COUNTIF($S$4:$S$56,$S60)+COUNTIF($S$4:$S$56,$T60) -> 33 | E60: 1 - 10 Years | G60: =SUMIF($S$4:$S$56,$S60,G$4:G$56)+SUMIF($S$4:$S$56,$T60,G$4:G$56) -> 1198181457 | I60: =SUMIF($S$4:$S$56,$S60,I$4:I$56)+SUMIF($S$4:$S$56,$T60,I$4:I$56) -> 1437414876 | K60: =SUMIF($S$4:$S$56,$S60,K$4:K$56)+SUMIF($S$4:$S$56,$T60,K$4:K$56) -> 1393759070 | L60: =(SUMIF($S$4:$S$56,$S60,T$4:T$56)+SUMIF($S$4:$S$56,$T60,T$4:T$56))/$K60 -> 0.01759220271 | M60: =(SUMIF($S$4:$S$56,$S60,U$4:U$56)+SUMIF($S$4:$S$56,$T60,U$4:U$56))/$K60 -> 4.558975022 | N60: =(SUMIF($S$4:$S$56,$S60,V$4:V$56)+SUMIF($S$4:$S$56,$T60,V$4:V$56))/$K60 -> 4.406956392 | O60: =(SUMIF($S$4:$S$56,$S60,W$4:W$56)+SUMIF($S$4:$S$56,$T60,W$4:W$56))/$K60 -> 0.04368207953 | P60: =(SUMIF($S$4:$S$56,$S60,X$4:X$56)+SUMIF($S$4:$S$56,$T60,X$4:X$56))/$K60 -> -0.04235435572 | Q60: =(SUMIF($S$4:$S$56,$S60,Y$4:Y$56)+SUMIF($S$4:$S$56,$T60,Y$4:Y$56))/$K60 -> -0.0821837902 | R60: =(SUMIF($S$4:$S$56,$S60,Z$4:Z$56)+SUMIF($S$4:$S$56,$T60,Z$4:Z$56))/$K60 -> -0.1196718002 | S60: B | T60: C
C61: =COUNTIF($S$4:$S$56,$S61)+COUNTIF($S$4:$S$56,$T61) -> 53 | E61: All TIPS | G61: =SUMIF($S$4:$S$56,$S61,G$4:G$56)+SUMIF($S$4:$S$56,$T61,G$4:G$56) -> 1672962549 | I61: =SUMIF($S$4:$S$56,$S61,I$4:I$56)+SUMIF($S$4:$S$56,$T61,I$4:I$56) -> 2057670246 | K61: =SUMIF($S$4:$S$56,$S61,K$4:K$56)+SUMIF($S$4:$S$56,$T61,K$4:K$56) -> 1941512256 | L61: =(SUMIF($S$4:$S$56,$S61,T$4:T$56)+SUMIF($S$4:$S$56,$T61,T$4:T$56))/$K61 -> 0.01940180598 | M61: =(SUMIF($S$4:$S$56,$S61,U$4:U$56)+SUMIF($S$4:$S$56,$T61,U$4:U$56))/$K61 -> 6.692913685 | N61: =(SUMIF($S$4:$S$56,$S61,V$4:V$56)+SUMIF($S$4:$S$56,$T61,V$4:V$56))/$K61 -> 6.184887301 | O61: =(SUMIF($S$4:$S$56,$S61,W$4:W$56)+SUMIF($S$4:$S$56,$T61,W$4:W$56))/$K61 -> 0.06125432046 | P61: =(SUMIF($S$4:$S$56,$S61,X$4:X$56)+SUMIF($S$4:$S$56,$T61,X$4:X$56))/$K61 -> -0.05738593561 | Q61: =(SUMIF($S$4:$S$56,$S61,Y$4:Y$56)+SUMIF($S$4:$S$56,$T61,Y$4:Y$56))/$K61 -> -0.1079363922 | R61: =(SUMIF($S$4:$S$56,$S61,Z$4:Z$56)+SUMIF($S$4:$S$56,$T61,Z$4:Z$56))/$K61 -> -0.1527974807 | S61: >=A | T61: X
C62: =COUNTIF($S$4:$S$56,$S62)+COUNTIF($S$4:$S$56,$T62) -> 48 | E62: 1+ Years | G62: =SUMIF($S$4:$S$56,$S62,G$4:G$56)+SUMIF($S$4:$S$56,$T62,G$4:G$56) -> 1493127188 | I62: =SUMIF($S$4:$S$56,$S62,I$4:I$56)+SUMIF($S$4:$S$56,$T62,I$4:I$56) -> 1816675448 | K62: =SUMIF($S$4:$S$56,$S62,K$4:K$56)+SUMIF($S$4:$S$56,$T62,K$4:K$56) -> 1702231654 | L62: =(SUMIF($S$4:$S$56,$S62,T$4:T$56)+SUMIF($S$4:$S$56,$T62,T$4:T$56))/$K62 -> 0.01823310262 | M62: =(SUMIF($S$4:$S$56,$S62,U$4:U$56)+SUMIF($S$4:$S$56,$T62,U$4:U$56))/$K62 -> 7.576678976 | N62: =(SUMIF($S$4:$S$56,$S62,V$4:V$56)+SUMIF($S$4:$S$56,$T62,V$4:V$56))/$K62 -> 6.99727747 | O62: =(SUMIF($S$4:$S$56,$S62,W$4:W$56)+SUMIF($S$4:$S$56,$T62,W$4:W$56))/$K62 -> 0.06930060877 | P62: =(SUMIF($S$4:$S$56,$S62,X$4:X$56)+SUMIF($S$4:$S$56,$T62,X$4:X$56))/$K62 -> -0.06489152991 | Q62: =(SUMIF($S$4:$S$56,$S62,Y$4:Y$56)+SUMIF($S$4:$S$56,$T62,Y$4:Y$56))/$K62 -> -0.1219928176 | R62: =(SUMIF($S$4:$S$56,$S62,Z$4:Z$56)+SUMIF($S$4:$S$56,$T62,Z$4:Z$56))/$K62 -> -0.172610983 | S62: >=B | T62: X
C63: =COUNTIF($S$4:$S$56,$S63)+COUNTIF($S$4:$S$56,$T63) -> 15 | E63: 15+ Years | G63: =SUMIF($S$4:$S$56,$S63,G$4:G$56)+SUMIF($S$4:$S$56,$T63,G$4:G$56) -> 294945731 | I63: =SUMIF($S$4:$S$56,$S63,I$4:I$56)+SUMIF($S$4:$S$56,$T63,I$4:I$56) -> 379260571.9 | K63: =SUMIF($S$4:$S$56,$S63,K$4:K$56)+SUMIF($S$4:$S$56,$T63,K$4:K$56) -> 308472583.8 | L63: =(SUMIF($S$4:$S$56,$S63,T$4:T$56)+SUMIF($S$4:$S$56,$T63,T$4:T$56))/$K63 -> 0.02112885449 | M63: =(SUMIF($S$4:$S$56,$S63,U$4:U$56)+SUMIF($S$4:$S$56,$T63,U$4:U$56))/$K63 -> 21.21144744 | N63: =(SUMIF($S$4:$S$56,$S63,V$4:V$56)+SUMIF($S$4:$S$56,$T63,V$4:V$56))/$K63 -> 18.70101935 | O63: =(SUMIF($S$4:$S$56,$S63,W$4:W$56)+SUMIF($S$4:$S$56,$T63,W$4:W$56))/$K63 -> 0.1850517626 | P63: =(SUMIF($S$4:$S$56,$S63,X$4:X$56)+SUMIF($S$4:$S$56,$T63,X$4:X$56))/$K63 -> -0.1667203231 | Q63: =(SUMIF($S$4:$S$56,$S63,Y$4:Y$56)+SUMIF($S$4:$S$56,$T63,Y$4:Y$56))/$K63 -> -0.3018603195 | R63: =(SUMIF($S$4:$S$56,$S63,Z$4:Z$56)+SUMIF($S$4:$S$56,$T63,Z$4:Z$56))/$K63 -> -0.4118039293 | S63: >=E | T63: X
A65: 1+ Index weighting
A66: 1-5 | B66: =COUNTIF($S$4:$S$56,$S66) -> 22 | G66: =SUMIF($S$4:$S$56,$S66,G$4:G$56)/G$62 -> 0.4801851073 | I66: =SUMIF($S$4:$S$56,$S66,I$4:I$56)/I$62 -> 0.4944870914 | K66: =SUMIF($S$4:$S$56,$S66,K$4:K$56)/K$62 -> 0.5222240035 | S66: B
A67: 5-10 | B67: =COUNTIF($S$4:$S$56,$S67) -> 11 | G67: =SUMIF($S$4:$S$56,$S67,G$4:G$56)/G$62 -> 0.3222793221 | I67: =SUMIF($S$4:$S$56,$S67,I$4:I$56)/I$62 -> 0.2967466304 | K67: =SUMIF($S$4:$S$56,$S67,K$4:K$56)/K$62 -> 0.2965594252 | S67: C
A68: 10-15 | B68: =COUNTIF($S$4:$S$56,$S68) -> 0 | G68: =SUMIF($S$4:$S$56,$S68,G$4:G$56)/G$62 -> 0 | I68: =SUMIF($S$4:$S$56,$S68,I$4:I$56)/I$62 -> 0 | K68: =SUMIF($S$4:$S$56,$S68,K$4:K$56)/K$62 -> 0 | S68: D
A69: 15-20 | B69: =COUNTIF($S$4:$S$56,$S69) -> 5 | G69: =SUMIF($S$4:$S$56,$S69,G$4:G$56)/G$62 -> 0.07253947679 | I69: =SUMIF($S$4:$S$56,$S69,I$4:I$56)/I$62 -> 0.08346967008 | K69: =SUMIF($S$4:$S$56,$S69,K$4:K$56)/K$62 -> 0.07945268051 | S69: E
A70: 20+ | B70: =COUNTIF($S$4:$S$56,$S70) -> 10 | G70: =SUMIF($S$4:$S$56,$S70,G$4:G$56)/G$62 -> 0.1249960938 | I70: =SUMIF($S$4:$S$56,$S70,I$4:I$56)/I$62 -> 0.1252966081 | K70: =SUMIF($S$4:$S$56,$S70,K$4:K$56)/K$62 -> 0.1017638907 | S70: F
A71: Total | B71: =SUM(B66:B70) -> 48 | G71: =SUM(G66:G70) -> 1 | I71: =SUM(I66:I70) -> 1 | K71: =SUM(K66:K70) -> 1
K73: # Real Avg - Real Duration - - Fall if Rates Rise -
K74: TIPS YTM Life Macaulay Modified 1% 2% 3% Index
K75: ---- ----- ---- -------- -------- ----- ----- ----- ------------
K76: =RIGHT(" "&C58,4)&RIGHT(" "&TEXT(L58,"_(#0.00%_);(#0.00%)"),10)&RIGHT(" "&TEXT(M58,"##0.00"),8)&RIGHT(" "&TEXT(N58,"##0.00"),9)&RIGHT(" "&TEXT(O58,"##0.00%"),9)&RIGHT(" "&TEXT(-P58,"##0.00%"),9)&RIGHT(" "&TEXT(-Q58,"##0.00%"),9)&RIGHT(" "&TEXT(-R58,"##0.00%"),9)&" "&E58 -> 27 1.95% 2.40 2.34 2.32% 2.28% 4.48% 6.60% 0 - 5 Years
K77: 22 1.73% 2.94 2.87 2.84% 2.79% 5.47% 8.06% 1 - 5 Years
K78: 33 1.76% 4.56 4.41 4.37% 4.24% 8.22% 11.97% 1 - 10 Years
K79: 53 1.94% 6.69 6.18 6.13% 5.74% 10.79% 15.28% All TIPS
K80: 48 1.82% 7.58 7.00 6.93% 6.49% 12.20% 17.26% 1+ Years
K81: 15 2.11% 21.21 18.70 18.51% 16.67% 30.19% 41.18% 15+ Years

Sheet Notes
A1: 2011-06-25 | B1: Bob Hinkley
B3: Excel workbook with macro to calculate yield to maturity and duration for one or more bonds
B10: Refer to following article in Wikipedia for explanation of MacCaulay and Modified Duration:
C11: http://en.wikipedia.org/wiki/Bond_duration
B13: Bonds sheet instructions
C14: 1 | D14: Enter the "Settlement" date which is the date bonds are assumed to be purchased,
C15: 2 | D15: Fill in the following 3 cells for one or more rows beginning with row 4
E16: Maturity
E17: Coupon
E18: Price
C19: 3 | D19: Click the [Calc YTM & Duration] button to run the macro
E20: All the other columns will be filled in
C22: Calculated Columns
D23: Accrued Interest | G23: Interest purchaser must pay on settlement date
D24: Total Outlay | G24: Total of Price and Accrued Interest
D25: First Interest Date | G25: Date purchaser receives first interest payment
D26: First Interest Tot Days | G26: # of days in period ending on first interest date
D27: First Interest Elap Days | G27: # of days from settlement date until first interest date
D28: Additional Periods | G28: # of full 6-month periods after first interest payment date
D29: YTM | G29: Yield to Maturity
D30: Years to Mature | G30: Years from settlement date until maturity date
D31: MacCaulay Duration | G31: See Wikipedia article
D32: Modified Duration | G32: See Wikipedia article [ MacCaulay Duration / (1 + YTM / 2) ]
D33: Price Sensitivity if YTM falls 1% | G33: Change in Present Value vs Total Outlay - see below
D34: Price Sensitivity if YTM rises 1% | G34: Ditto
C36: Explanation of Modified Duration vs Price Sensitivity
B50: Detail sheet instructions
B69: WSJ sheet instructions
B87: Weight sheet instructions
C88: 1 | D88: Follow WSJ sheet instructions to get latest prices
C89: 2 | D89: Follow Bonds sheet instructions to run the calculation macro
C90: 3 | D90: On Weight sheet enter the Reference CPI for the settlement date in the yellow cell
D91: For 2013 get it from: | G91: http://eyebonds.info/tips/2013/tips00_2013.html
C92: 4 | D92: Read the weighted averages from the bottom of the sheet
C93: 5 | D93: For a new issue or auction use following web page to get auction results
D94: http://www.treasurydirect.gov/instit/annceresult/press/preanre/preanre_iis.htm
A122: 2011-07-02 | B122: Added Price Sensitivity calculation to Detail sheet
A123: 2011-07-04 | B123: Corrected wording for "Explanation of Modified Duration vs Price Sensitivity" on this sheet
A124: 2012-05-23 | B124: Removed TIP_ETF sheet to simplify
A125: 2012-10-28 | B125: Added Weight sheet and updated WSJ Quotes as of 10/26/2012 (10/29/2012 settlement)
A126: 2012-10-29 | B126: Added 0+ row to Weight sheet to show All TIPS
A127: 2012-11-02 | B127: Add YTM Sensitivity to Weight sheet. Show +3% as well as -1% / +1% on Bonds sheet.
B128: Updated for TIPS prices 11/2/2012
A129: 2012-11-09 | B129: Updated for TIPS prices 11/9/2012
A130: 2012-11-17 | B130: Updated for TIPS prices 11/16/2012
A131: 2012-12-21 | B131: Updated for TIPS prices 12/21/2012 & Nov & Dec auctions
A132: 2013-01-04 | B132: Updated for TIPS prices 1/4/2013
B133: Changed YTM sensitvity defaults to +1%, +2%, & +3% since that's what I show in Boglehead's thread.
B134: Fixed YTM fmt on Weight sheet for neg nbrs from (-1.23%) to just (1.23%)
A135: 2013-02-10 | B135: Updated for TIPS prices 2/8/2013
A136: 2013-02-16 | B136: Updated for TIPS prices 2/15/2013
A137: 2013-04-26 | B137: Updated for prices and auctions thru 4/26/2013
A138: 2013-05-17 | B138: Updated for prices thru 5/17/2013
A139: 2013-06-07 | B139: Updated for prices and auctions thru 06/07/2013
A140: 2013-06-21 | B140: Updated for prices and auctions thru 06/21/2013
A141: 2013-07-19 | B141: Updated for prices and auctions thru 07/19/2013
A142: 2013-08-30 | B142: Updated for prices and auctions thru 08/30/2013
A143: 2013-09-20 | B143: Updated for prices and auctions thru 09/20/2013
A144: 2013-10-26 | B144: Updated for prices and auctions thru 10/25/2013
A145: 2013-11-23 | B145: Updated for prices and auctions thru 11/22/2013
A146: 2013-12-21 | B146: Updated for prices and auctions thru 12/20/2013
A147: 2014-01-24 | B147: Updated for prices and auctions thru 01/24/2014
A148: 2014-02-21 | B148: Updated for prices and auctions thru 02/21/2014
A149: 2014-03-22 | B149: Updated for prices and auctions thru 3/21/2014
A150: 2014-04-25 | B150: Expand A-D groups to A-F & add 1-5, 5-10, 10-15, 15-20, & 20+ % of 1+ index
B151: Updated for prices and auctions thru 4/25/2013
A152: 2014-05-23 | B152: Updated for prices and auctions thru 5/23/2014
A153: 2014-06-20 | B153: Updated for prices and auctions thru 6/20/2014
A154: 2014-07-25 | B154: Updated for prices and auctions thru 7/25/2014
A155: 2014-09-19 | B155: Updated for prices and auctions thru 9/19/2015
A156: 2014-10-21 | B156: Added 1-10 row on Weight sheet for SPDR TIPX fund
A157: 2014-10-24 | B157: Updated for prices and auctions thru 10/24/2014
A158: 2014-12-19 | B158: Updated for prices and auctions thru 12/19/2014
A159: 2015-01-23 | B159: Modified lookup to use coupon as well as maturity since now two mature 1/15/2025
B160: Updated for prices and auctions thru 1/23/2015
A161: 2015-03-20 | B161: Updated for prices and auctions thru 3/20/2015
A162: 2015-06-19 | B162: Updated for prices and auctions thru 6/19/2015
A163: 2015-07-24 | B163: Updated for prices and auctions thru 7/24/2015
A164: 2015-08-28 | B164: Updated for prices and auctions thru 8/28/2015
A165: 2015-10-23 | B165: Updated for prices and auctions thru 10/23/2015
A166: 2015-11-20 | B166: Updated for prices and auctions thru 11/20/2015
A167: 2016-01-01 | B167: Updated for prices and auctions thru 12/31/2015
A168: 2016-01-30 | B168: Updated for prices and auctions thru 1/29/2016
A169: 2016-03-31 | B169: Updated for prices and auctions thru 3/31/2016
A170: 2016-06-30 | B170: Updated for prices and auctions thru 6/30/2016
A171: 2016-09-30 | B171: Updated for prices and auctions thru 9/30/2016
A172: 2016-12-30 | B172: Updated for prices and auctions thru 12/30/2016
A173: 2017-03-31 | B173: Updated for prices and auctions thru 03/31/2017
A174: 2017-06-30 | B174: Updated for prices and auctions thru 06/30/2017
A175: 2017-09-29 | B175: Updated for prices and auctions thru 09/29/2017
A176: 2017-12-29 | B176: Updated for prices and auctions thru 12/29/2017
A177: 2018-03-30 | B177: Updated for prices and auctions thru 3/29/2018
A178: 2018-06-29 | B178: Updated for prices and auctions thru 6/29/2018
A179: 2018-09-28 | B179: Updated for prices and auctions thru 9/28/2018
A180: 2018-12-31 | B180: Updated for prices and auctions thru 12/31/2018
A181: 2019-03-29 | B181: Updated for prices and auctions thru 03/29/2019
A182: 2019-06-29 | B182: Updated for prices and auctions thru 06/28/2019
A183: 2019-09-27 | B183: Add Macaulay durtion to Weight sheet
B184: Add monospaced font section on Weight sheet for pasting to posts
A185: 2019-09-30 | B185: Updated for prices and auctions thru 9/30/2019
A186: 2020-01-01 | B186: Updated for prices and auctions thru 12/31/2019
A187: 2020-03-31 | B187: Updated for prices and auctions thru 3/31/2020
A188: 2020-04-30 | B188: Updated for prices and auctions thru 4/30/2020
A189: 2020-05-29 | B189: Updated for prices and auctions thru 5/29/202o
A190: 2020-06-30 | B190: Updated for prices and auctions thru 6/30/2020
A191: 2020-08-02 | B191: Updated for prices and auctions thru 7/31/2020
B192: (includes $25K 7/13/2020 test auction April 2025)
A193: 2020-08-31 | B193: Updated for prices and auctions thru 8/31/2020
A194: 2020-09-30 | B194: Updated for prices and auctions thru 9/30/2020
A195: 2020-10-30 | B195: Updated for prices and auctions thru 10/30/2020
A196: 2020-11-30 | B196: Updated for prices and auctions thru 11/30/2020
A197: 2021-01-01 | B197: Updated for prices and auctions thru 12/31/2020
A198: 2021-01-31 | B198: Updated for prices and auctions thru 1/29/2021
A199: 2021-02-26 | B199: Updated for prices and auctions thru 2/26/2021
A200: 2021-03-31 | B200: Updated for prices and auctions thru 3/31/2021
A201: 2021-05-01 | B201: Updated for prices and auctions thru 4/30/2021
B202: Saved as .XLSM
A203: 2021-05-28 | B203: Updated for prices and auctions thru 5/28/2021
A204: 2021-06-30 | B204: Updated for prices and auctions thru 6/30/2021
A205: 2021-07-31 | B205: Updated for prices and auctions thru 7/30/2021
A206: 2021-08-31 | B206: Updated for prices and auctions thru 8/31/2021
A207: 2021-09-30 | B207: Updated for prices and auctions thru 9/30/2021
A208: 2021-10-29 | B208: Updated for prices and auctions thru 10/29/2021
A209: 2021-11-30 | B209: Updated for prices and auctions thru 11/30/2021
A210: 2022-01-02 | B210: Updated for prices and auctions thru 12/31/2021 (set 1/15/2022 Mkt Value to $0 on Weight sheet)
A211: 2022-01-31 | B211: Updated for prices and auctions thru 1/31/2022
A212: 2022-02-28 | B212: Updated for prices and auctions thru 2/28/2022
A213: 2022-03-31 | B213: Updated for prices and auctions thru 3/31/2022 (set 4/15/2022 Mkt Value to $0 on Weight sheet)
A214: 2022-04-29 | B214: Updated for prices and auctions thru 4/29/2022
A215: 2022-05-31 | B215: Updated for prices and auctions thru 5/31/2022
A216: 2022-06-30 | B216: Updated for prices and auctions thru 6/30/2022 (set 7/15/2022 Mkt Value to $0 on Weight sheet)
A217: 2022-07-29 | B217: Updated for prices and auctions thru 7/29/2022
A218: 2022-09-30 | B218: Updated for prices and auctions 9/30/2022
A219: 2022-10-31 | B219: Updated for prices and auctions 10/31/2022
A220: 2022-11-01 | B220: Fixed order of Apr 27 & July 27 on Weight sheet -- was backward
A221: 2022-11-30 | B221: Updated for prices and auctions 11/30/2022
A222: 2023-01-31 | B222: Updated for prices and auctions 1/31/2023
A223: 2023-03-01 | B223: Updated for prices and auctions 2/28/2023
A224: 2023-04-06 | B224: Updated for prices and auctions 3/31/2023 -- zeroed out 4/15/2023 maturity
A225: 2023-04-28 | B225: Updated for prices and auctions 4/28/2023
A226: 2023-05-31 | B226: Updated for prices and auctions 5/31/2023
A227: 2023-06-30 | B227: Updated for prices and auctions 6/30/2023
A228: 2023-07-31 | B228: Updated for prices and auctions 7/31/2023
A229: 2023-08-31 | B229: Updated for prices and auctions 8/31/2023
A230: 2023-09-29 | B230: Updated for prices and auctions 9/29/2023
A231: 2023-10-31 | B231: Updated for prices and auctions 10/31/2023 (New Oct 2028 price from Bloomberg)
A232: 2023-11-01 | B232: Fix reversed face values for 7/15/2028 and 10/15/2028 on Weight sheet
A233: 2023-11-30 | B233: Updated for prices and auctions 11/30/2023 (New Oct 2028 price STILL from Bloomberg)
A234: 2023-12-29 | B234: Updated for prices and auctions 12/29/2023 (all prices from WSJ as usual)
A235: 2024-01-31 | B235: Updated for prices and auctions 1/31/2024
A236: 2024-02-29 | B236: Updated for prices and auctions 2/29/2024
A237: 2024-03-29 | B237: Updated for prices and auctions 3/28/2024 (3/29 Good Friday holiday)
A238: 2024-05-31 | B238: Updated for prices and auctions 5/31/2024
A239: 2024-06-28 | B239: Updated for prices and auctions 6/28/2024
A240: 2024-07-31 | B240: Updated for prices and auctions 7/31/2024
A241: 2024-09-01 | B241: Updated for prices and auctions 8/30/2024
A242: 2024-09-30 | B242: Updated for prices and auctions 9/30/2024
A243: 2024-10-31 | B243: Updated for prices and auctions 10/31/2024
A244: 2024-11-29 | B244: Updated for prices and auctions 11/29/2024
